Workbook

Sheet 1
A1: 控制价清单表
A2: 隆昌市城市污水处理设施能力提升项目设计施工总承包 二 标段-劳务分包采购
A3: 序号 | B3: 工程或费用名称 | C3: 工作内容 | D3: 单位 | E3: 工程量 （暂估） | F3: 含税控制单价（3%） | G3: 含税控制合价（3%）
A4: 1 | B4: ='筛选分析-数量 (求和)'!A2 -> 1:1碎石砂 | C4: 1、密实度要求:按设计及规范要 求 2、填方材料品种:1:1碎石砂 3、其他：包含施工图纸、技术 规范所需全部工作内容 | D4: ='筛选分析-数量 (求和)'!C2 -> m3 | E4: 158.83 | F4: 15.45 | G4: =ROUND(E4*F4,2) -> 2453.92
A5: 2 | B5: ='筛选分析-数量 (求和)'!A3 -> 15cm C20水泥混凝土 | C5: 1、混凝土强度等级:C20 2、厚度:15cm 3、其他：包含施工图纸、技术 规范所需全部工作内容 | D5: ='筛选分析-数量 (求和)'!C3 -> m2 | E5: 3487.77 | F5: 9.63 | G5: 33587.23
A6: 3 | B6: ='筛选分析-数量 (求和)'!A4 -> 1cm 乳化沥青下封层 | C6: 1、材料品种:乳化沥青下封层 2、喷油量:按设计图纸要求 3、厚度:1cm 4、部位:下封层 | D6: ='筛选分析-数量 (求和)'!C4 -> m2 | E6: 13064.97 | F6: 0.52 | G6: 6793.78
A7: 4 | B7: ='筛选分析-数量 (求和)'!A5 -> 20cm 4%水泥稳定碎石 | C7: 1、水泥含量:4% 2、厚度:20cm | D7: ='筛选分析-数量 (求和)'!C5 -> m2 | E7: 13064.97 | F7: 7.21 | G7: 94198.43
A8: 5 | B8: ='筛选分析-数量 (求和)'!A6 -> 20cm 5%水泥稳定碎石 | C8: 1、水泥含量:5% 2、厚度:20cm | D8: ='筛选分析-数量 (求和)'!C6 -> m2 | E8: 13064.97 | F8: 7.21 | G8: 94198.43
A9: 6 | B9: ='筛选分析-数量 (求和)'!A7 -> 20cm 级配碎石 | C9: 1.石料规格：按设计图纸 2.厚度：20cm | D9: ='筛选分析-数量 (求和)'!C7 -> m2 | E9: 23429.64 | F9: 5.71 | G9: 133783.24
A10: 7 | B10: ='筛选分析-数量 (求和)'!A8 -> 22cm C40水泥砼面层 | C10: 1.混凝土强度等级：C40 2.厚度：22cm | D10: ='筛选分析-数量 (求和)'!C8 -> m2 | E10: 10364.67 | F10: 13.91 | G10: 144172.56
A11: 8 | B11: ='筛选分析-数量 (求和)'!A9 -> 2cm水泥防水砂浆 | C11: 1.2cm水泥防水砂浆 | D11: ='筛选分析-数量 (求和)'!C9 -> m2 | E11: 1800.00 | F11: 13.39 | G11: 24102.00
A12: 9 | B12: ='筛选分析-数量 (求和)'!A10 -> 5cm 细粒式改性沥青砼(AC-13C) | C12: 1、名称及规格:5cm 细粒式改性 沥青砼(AC-13C) 2、其他：包含图纸、技术规范 所需全部工作内容 | D12: ='筛选分析-数量 (求和)'!C10 -> m2 | E12: 13064.97 | F12: 3.63 | G12: 47425.84
A13: 10 | B13: ='筛选分析-数量 (求和)'!A11 -> 5cm厚透水砖 | C13: 1.块料品种、 规格：5cm厚透水 砖 2.结合层做法： 3cm1：3水泥砂 浆 3.其他：包含施工图纸、技术规 范所需全部工作内容岩 | D13: ='筛选分析-数量 (求和)'!C11 -> m2 | E13: 3487.77 | F13: 24.21 | G13: 84438.91
A14: 11 | B14: ='筛选分析-数量 (求和)'!A12 -> 7cm 中粒式沥青混凝土（AC-20C） | C14: 1、名称及规格:7cm 中粒式沥青 混凝土（AC-20C） 2、其他：包含图纸、技术规范 所需全部工作内容 | D14: ='筛选分析-数量 (求和)'!C12 -> m2 | E14: 13064.97 | F14: 4.35 | G14: 56832.62
A15: 12 | B15: ='筛选分析-数量 (求和)'!A13 -> Ⅱ级混凝土管 d1500 雨水管 | C15: 1、材质及规格:II级钢筋混凝土 管 d1500 2、其他：包含施工图纸、技术 规范所需全部工作内容 | D15: ='筛选分析-数量 (求和)'!C13 -> m | E15: 328.40 | F15: 154.50 | G15: 50737.80
A16: 13 | B16: ='筛选分析-数量 (求和)'!A14 -> Ⅱ级混凝土管 d1650 雨水管 | C16: 1、管材规格： II级钢筋混凝土 管 d1650 2、接口方式：橡胶圈接口 3、管座材质： 枕基C20混凝土 4、其他：包含施工图纸、技术 规范所需全部工作内容 | D16: ='筛选分析-数量 (求和)'!C14 -> m | E16: 424.80 | F16: 154.50 | G16: 65631.60
A17: 14 | B17: ='筛选分析-数量 (求和)'!A15 -> Ⅱ级混凝土管 d1800 雨水管 | C17: 1、管材规格： II级钢筋混凝土 管 d1800 2、其他：包含施工图纸、技术 规范所需全部工作内容 | D17: ='筛选分析-数量 (求和)'!C15 -> m | E17: 422.00 | F17: 206.00 | G17: 86932.00
A18: 15 | B18: ='筛选分析-数量 (求和)'!A16 -> Ⅱ级混凝土管 d1800 雨水管（远期预留） | C18: 1、材质及规格:II级钢筋混凝土 管 d1800 2、其他：包含施工图纸、技术 规范所需全部工作内容 | D18: ='筛选分析-数量 (求和)'!C16 -> m | E18: 17.56 | F18: 206.00 | G18: 3617.36
A19: 16 | B19: ='筛选分析-数量 (求和)'!A17 -> Ⅱ级混凝土管 d2000 雨水管 | C19: 1、材质及规格:II级钢筋混凝土 管 d2000 2、其他：包含施工图纸、技术 规范所需全部工作内容 | D19: ='筛选分析-数量 (求和)'!C17 -> m | E19: 277.00 | F19: 206.00 | G19: 57062.00
A20: 17 | B20: ='筛选分析-数量 (求和)'!A18 -> Ⅱ级混凝土管 d300 雨水管（包管） | C20: 1、管材规格： II级钢筋混凝土 管 d300 2、接口方式：橡胶圈接口 3、管座材质： 枕基C20混凝土 4、其他：包含施工图纸、技术 规范所需全部工作内容 | D20: ='筛选分析-数量 (求和)'!C18 -> m | E20: 2774.28 | F20: 66.95 | G20: 185738.05
A21: 18 | B21: ='筛选分析-数量 (求和)'!A19 -> Ⅱ级混凝土管 d300（包管） | C21: 1、管材规格： II级钢筋混凝土 管 d300 2、接口方式：承插式弹性密封 圈连接 3、管座材质： 枕基C20混凝土 4、其他：包含施工图纸、技术 规范所需全部工作内容 | D21: ='筛选分析-数量 (求和)'!C19 -> m | E21: 1080.47 | F21: 66.95 | G21: 72337.47
A22: 19 | B22: ='筛选分析-数量 (求和)'!A20 -> 标线（热涂）1.8mm厚 | C22: 1.名称：虚线 2.材质：热熔型反光环保涂料 3.规格：综合 4.厚度：1.8mm 5.工艺：符合设计及相关规范要求 6.其他：满足施工规范及验收要求 | D22: ='筛选分析-数量 (求和)'!C20 -> m2 | E22: 904.70 | F22: 3.09 | G22: 2795.52
A23: 20 | B23: ='筛选分析-数量 (求和)'!A21 -> 玻纤格栅 | C23: 1.材料品种、 规格:按设计图纸 2.搭接方式:按设计图纸 | D23: ='筛选分析-数量 (求和)'!C21 -> m2 | E23: 13064.97 | F23: 2.06 | G23: 26913.84
A24: 21 | B24: ='筛选分析-数量 (求和)'!A22 -> 仓面脚手架 | C24: 1、名称： 脚手架 | D24: ='筛选分析-数量 (求和)'!C22 -> m2 | E24: 606.60 | F24: 8.65 | G24: 5247.09
A25: 22 | B25: ='筛选分析-数量 (求和)'!A23 -> 槽钢引孔φ400 | C25: 1、地层情况:按地质勘察报告 2、引孔长度:按设计图纸要求 3、其他：包含施工图纸、技术 规范所需全部工作内容 | D25: ='筛选分析-数量 (求和)'!C23 -> m | E25: 60410.21 | F25: 10.30 | G25: 622225.16
A26: 23 | B26: ='筛选分析-数量 (求和)'!A24 -> 槽型钢板桩（含支撑） | C26: 1、地层情况:按地质勘察报告 2、桩长:按设计图纸要求 3、其他：包含施工图纸、技术 规范所需全部工作内容 | D26: ='筛选分析-数量 (求和)'!C24 -> t | E26: 6334.87 | F26: 46.35 | G26: 293621.13
A27: 24 | B27: ='筛选分析-数量 (求和)'!A35 -> 成品硅砂雨水入渗井 | C27: 1.成品硅砂雨水入渗井 | D27: ='筛选分析-数量 (求和)'!C35 -> 座 | E27: 2.00 | F27: 51.50 | G27: =ROUND(E27*F27,2) -> 103.00
A28: 25 | B28: ='筛选分析-数量 (求和)'!A36 -> 挡土板 密撑 | C28: 1、材质:挡土板 2、挡土深度:综合考虑 3、其他：包含施工图纸、技术 规范所需全部工作内容 | D28: ='筛选分析-数量 (求和)'!C36 -> m2 | E28: 31576.93 | F28: 4.12 | G28: 130096.95
A29: 26 | B29: ='筛选分析-数量 (求和)'!A37 -> 堤岸破除修复 HXL 4.4X5 | C29: 1、名称： 堤岸破除修复 HXL 4.4X5 2、其他：包含图纸、技术规范 所需全部工作内容 | D29: ='筛选分析-数量 (求和)'!C37 -> m | E29: 5.00 | F29: 515.00 | G29: 2575.00
A30: 27 | B30: ='筛选分析-数量 (求和)'!A38 -> 堤岸破除修复 HXL 6.5X5 | C30: 1、名称： 堤岸破除修复 HXL 6.5X5 2、其他：包含图纸、技术规范 所需全部工作内容 | D30: ='筛选分析-数量 (求和)'!C38 -> m | E30: 10.00 | F30: 515.00 | G30: 5150.00
A31: 28 | B31: ='筛选分析-数量 (求和)'!A39 -> 垫层模板 | C31: 1、名称： 模板 | D31: ='筛选分析-数量 (求和)'!C39 -> m2 | E31: 1123.24 | F31: 18.54 | G31: 20824.87
A32: 29 | B32: ='筛选分析-数量 (求和)'!A40 -> 反光标志牌100cm×120cm | C32: 1.交通标志板：反光标志牌100cm×120cm 2.其它：满足设计规范及交通管理部门要求 | D32: ='筛选分析-数量 (求和)'!C40 -> 套 | E32: 23.00 | F32: 103.00 | G32: 2369.00
A33: 30 | B33: ='筛选分析-数量 (求和)'!A41 -> 反光标志牌80cm×60cm | C33: 1.交通标志板：反光标志牌80cm×60cm 2.其它：满足设计规范及交通管理部门要求 | D33: ='筛选分析-数量 (求和)'!C41 -> 套 | E33: 52.00 | F33: 51.50 | G33: 2678.00
A34: 31 | B34: ='筛选分析-数量 (求和)'!A42 -> 反光标志牌D=80cm | C34: 1.交通标志板：反光标志牌D=80cm 2.其它：满足设计规范及交通管理部门要求 | D34: ='筛选分析-数量 (求和)'!C42 -> 套 | E34: 40.00 | F34: 51.50 | G34: 2060.00
A35: 32 | B35: ='筛选分析-数量 (求和)'!A43 -> 方沟侧壁模板 | C35: 1、名称： 模板 | D35: ='筛选分析-数量 (求和)'!C43 -> m2 | E35: 10046.92 | F35: 18.54 | G35: 186269.90
A36: 33 | B36: ='筛选分析-数量 (求和)'!A44 -> 方沟底板模板 | C36: 1、名称： 模板 | D36: ='筛选分析-数量 (求和)'!C44 -> m2 | E36: 1820.14 | F36: 18.54 | G36: 33745.40
A37: 34 | B37: ='筛选分析-数量 (求和)'!A45 -> 防撞沙桶 | C37: 1.材料品种：防撞沙桶 2.其他：包含施工图纸、技术规范所需全部工作内容 | D37: ='筛选分析-数量 (求和)'!C45 -> 个 | E37: 128.00 | F37: 10.30 | G37: 1318.40
A38: 35 | B38: ='筛选分析-数量 (求和)'!A46 -> 钢带增强聚乙烯螺旋波纹管DN1000mm SN12.5 雨水管 | C38: 1、材质及规格:钢带增强聚乙烯 螺旋波纹管、DN1000 2、其他：包含施工图纸、技术 规范所需全部工作内容 | D38: ='筛选分析-数量 (求和)'!C46 -> m | E38: 1069.50 | F38: 44.81 | G38: 47924.30
A39: 36 | B39: ='筛选分析-数量 (求和)'!A47 -> 钢带增强聚乙烯螺旋波纹管DN1000mm SN8.0 | C39: 1、材质及规格:孔网钢带增强聚 乙烯螺旋波纹管、DN1000mm SN8.0 2、其他：包含施工图纸、技术 规范所需全部工作内容 | D39: ='筛选分析-数量 (求和)'!C47 -> m | E39: 32.30 | F39: 44.81 | G39: 1447.36
A40: 37 | B40: ='筛选分析-数量 (求和)'!A48 -> 钢带增强聚乙烯螺旋波纹管DN1200mm SN12.5 雨水管 | C40: 1、材质及规格:钢带增强聚乙烯 螺旋波纹管、DN1200 2、其他：包含施工图纸、技术 规范所需全部工作内容 | D40: ='筛选分析-数量 (求和)'!C48 -> m | E40: 225.50 | F40: 44.81 | G40: 10104.66
A41: 38 | B41: ='筛选分析-数量 (求和)'!A49 -> 钢带增强聚乙烯螺旋波纹管DN300mm SN8.0 | C41: 1、材质及规格:钢带增强聚乙烯 螺旋波纹管、DN300mm SN8.0 2、其他：包含施工图纸、技术 规范所需全部工作内容 | D41: ='筛选分析-数量 (求和)'!C49 -> m | E41: 679.00 | F41: 44.81 | G41: 30425.99
A42: 39 | B42: ='筛选分析-数量 (求和)'!A50 -> 钢带增强聚乙烯螺旋波纹管DN300mm SN8.0 （污水管） | C42: 1、材质及规格:钢带增强聚乙烯 螺旋波纹管、DN300mm SN8.0 2、其他：包含施工图纸、技术 规范所需全部工作内容 | D42: ='筛选分析-数量 (求和)'!C50 -> m | E42: 66.10 | F42: 44.81 | G42: 2961.94
A43: 40 | B43: ='筛选分析-数量 (求和)'!A51 -> 钢带增强聚乙烯螺旋波纹管DN400mm SN12.5 污水管 | C43: 1、材质及规格:钢带增强聚乙烯 螺旋波纹管、DN400 2、其他：包含施工图纸、技术 规范所需全部工作内容 | D43: ='筛选分析-数量 (求和)'!C51 -> m | E43: 297.50 | F43: 44.81 | G43: 13330.98
A44: 41 | B44: ='筛选分析-数量 (求和)'!A52 -> 钢带增强聚乙烯螺旋波纹管DN400mm SN12.5 雨水管 | C44: 1、材质及规格:钢带增强聚乙烯 螺旋波纹管、DN400 2、其他：包含施工图纸、技术 规范所需全部工作内容 | D44: ='筛选分析-数量 (求和)'!C52 -> m | E44: 883.30 | F44: 44.81 | G44: 39580.67
A45: 42 | B45: ='筛选分析-数量 (求和)'!A53 -> 钢带增强聚乙烯螺旋波纹管DN400mm SN8.0 | C45: 1、材质及规格:钢带增强聚乙烯 螺旋波纹管、DN400mm SN8.0 2、其他：包含施工图纸、技术 规范所需全部工作内容 | D45: ='筛选分析-数量 (求和)'!C53 -> m | E45: 5263.50 | F45: 44.81 | G45: 235857.44
A46: 43 | B46: ='筛选分析-数量 (求和)'!A54 -> 钢带增强聚乙烯螺旋波纹管DN500mm SN12.5 雨水管 | C46: 1、材质及规格:钢带增强聚乙烯 螺旋波纹管、DN500 2、其他：包含施工图纸、技术 规范所需全部工作内容 | D46: ='筛选分析-数量 (求和)'!C54 -> m | E46: 483.60 | F46: 44.81 | G46: 21670.12
A47: 44 | B47: ='筛选分析-数量 (求和)'!A55 -> 钢带增强聚乙烯螺旋波纹管DN500mm SN8.0 | C47: 1、材质及规格:钢带增强聚乙烯 螺旋波纹管、DN500mm SN8.0 2、其他：包含施工图纸、技术 规范所需全部工作内容 | D47: ='筛选分析-数量 (求和)'!C55 -> m | E47: 949.36 | F47: 44.81 | G47: 42540.82
A48: 45 | B48: ='筛选分析-数量 (求和)'!A56 -> 钢带增强聚乙烯螺旋波纹管DN600mm SN12.5 雨水管 | C48: 1、材质及规格:钢带增强聚乙烯 螺旋波纹管、DN600 2、其他：包含施工图纸、技术 规范所需全部工作内容 | D48: ='筛选分析-数量 (求和)'!C56 -> m | E48: 532.94 | F48: 44.81 | G48: 23881.04
A49: 46 | B49: ='筛选分析-数量 (求和)'!A57 -> 钢带增强聚乙烯螺旋波纹管DN600mm SN12.5 雨水管孔网 | C49: 1、材质及规格:钢带增强聚乙烯 螺旋波纹管、DN600 2、其他：包含施工图纸、技术 规范所需全部工作内容 | D49: ='筛选分析-数量 (求和)'!C57 -> m | E49: 100.00 | F49: 44.81 | G49: 4481.00
A50: 47 | B50: ='筛选分析-数量 (求和)'!A58 -> 钢带增强聚乙烯螺旋波纹管DN600mm SN8.0 | C50: 1、材质及规格:钢带增强聚乙烯 螺旋波纹管、DN600mm SN8.0 2、其他：包含施工图纸、技术 规范所需全部工作内容 | D50: ='筛选分析-数量 (求和)'!C58 -> m | E50: 625.00 | F50: 44.81 | G50: 28006.25
A51: 48 | B51: ='筛选分析-数量 (求和)'!A59 -> 钢带增强聚乙烯螺旋波纹管DN800mm SN12.5 | C51: 1、材质及规格：钢带增强聚乙 烯螺旋波纹管、DN800 2、其他：包含施工图纸、技术 规范所需全部工作内容 | D51: ='筛选分析-数量 (求和)'!C59 -> m | E51: 46.80 | F51: 44.81 | G51: 2097.11
A52: 49 | B52: ='筛选分析-数量 (求和)'!A60 -> 钢带增强聚乙烯螺旋波纹管DN800mm SN12.5 污水管 | C52: 1、材质及规格:钢带增强聚乙烯 螺旋波纹管、DN800 2、其他：包含施工图纸、技术 规范所需全部工作内容 | D52: ='筛选分析-数量 (求和)'!C60 -> m | E52: 215.00 | F52: 44.81 | G52: 9634.15
A53: 50 | B53: ='筛选分析-数量 (求和)'!A61 -> 钢带增强聚乙烯螺旋波纹管DN800mm SN12.5 雨水管 | C53: 1、材质及规格:钢带增强聚乙烯 螺旋波纹管、DN800 2、其他：包含施工图纸、技术 规范所需全部工作内容 | D53: ='筛选分析-数量 (求和)'!C61 -> m | E53: 375.20 | F53: 44.81 | G53: 16812.71
A54: 51 | B54: ='筛选分析-数量 (求和)'!A62 -> 钢带增强聚乙烯螺旋波纹管DN800mm SN12.5 雨水管（远期预留） | C54: 1、材质及规格:钢带增强聚乙烯 螺旋波纹管、DN800 2、其他：包含施工图纸、技术 规范所需全部工作内容 | D54: ='筛选分析-数量 (求和)'!C62 -> m | E54: 27.18 | F54: 44.81 | G54: 1217.94
A55: 52 | B55: ='筛选分析-数量 (求和)'!A63 -> 钢带增强聚乙烯螺旋波纹管DN800mm SN8.0 | C55: 1、材质及规格:钢带增强聚乙烯 螺旋波纹管、DN800mm SN8.0 2、其他：包含施工图纸、技术 规范所需全部工作内容 | D55: ='筛选分析-数量 (求和)'!C63 -> m | E55: 205.20 | F55: 44.81 | G55: 9195.01
A56: 53 | B56: ='筛选分析-数量 (求和)'!A64 -> 钢筋混凝土 沉泥井 1700×1100（井高1.80+0.5m， 图集20s515-39) | C56: 1、井径:按设计图纸 2、混凝土强度等级:按设计图纸 3、其他：包含图纸、技术规范 所需全部工作内容 | D56: ='筛选分析-数量 (求和)'!C64 -> 座 | E56: 2.00 | F56: 1065.84 | G56: 2131.68
A57: 54 | B57: ='筛选分析-数量 (求和)'!A65 -> 钢筋混凝土 沉泥井 1700×1500（井高1.90+0.5m， 图集20s515-122) | C57: 1、井径:按设计图纸 2、混凝土强度等级:按设计图纸 3、其他：包含图纸、技术规范 所需全部工作内容 | D57: ='筛选分析-数量 (求和)'!C65 -> 座 | E57: 7.00 | F57: 1849.98 | G57: 12949.86
A58: 55 | B58: ='筛选分析-数量 (求和)'!A66 -> 钢筋混凝土 沉泥井 2100×1800（井高1.92+0.5m， 图集20s515-122) | C58: 1、井径:按设计图纸 2、混凝土强度等级:按设计图纸 3、其他：包含图纸、技术规范 所需全部工作内容 | D58: ='筛选分析-数量 (求和)'!C66 -> 座 | E58: 2.00 | F58: 2004.33 | G58: =ROUND(E58*F58,2) -> 4008.66
A59: 56 | B59: ='筛选分析-数量 (求和)'!A67 -> 钢筋混凝土 沉泥井 2400×2000（井高1.94+0.5m， 图集20s515-122) | C59: 1、井径:按设计图纸 2、混凝土强度等级:按设计图纸 3、其他：包含图纸、技术规范 所需全部工作内容 | D59: ='筛选分析-数量 (求和)'!C67 -> 座 | E59: 1.00 | F59: 3837.42 | G59: 3837.42
A60: 57 | B60: ='筛选分析-数量 (求和)'!A68 -> 钢筋混凝土 沉泥井 2700×2300（井高2.17+0.5m， 图集20s515-122) | C60: 1、井径:按设计图纸 2、混凝土强度等级:按设计图纸 3、其他：包含图纸、技术规范 所需全部工作内容 | D60: ='筛选分析-数量 (求和)'!C68 -> 座 | E60: 3.00 | F60: 5029.28 | G60: 15087.84
A61: 58 | B61: ='筛选分析-数量 (求和)'!A69 -> 钢筋混凝土 沉泥井 3800×1600（井高5.56m， 图集20s515-263)单圆形竖槽式跌水井1m | C61: 1、井径:按设计图纸 2、混凝土强度等级:按设计图纸 3、其他：包含图纸、技术规范 所需全部工作内容 | D61: ='筛选分析-数量 (求和)'!C69 -> 座 | E61: 1.00 | F61: 4107.59 | G61: 4107.59
A62: 59 | B62: ='筛选分析-数量 (求和)'!A70 -> 钢筋混凝土 沉泥井 4000×3400（井高3.23m， 图集20s515-122) | C62: 1、井径:按设计图纸 2、混凝土强度等级:按设计图纸 3、其他：包含图纸、技术规范 所需全部工作内容 | D62: ='筛选分析-数量 (求和)'!C70 -> 座 | E62: 2.00 | F62: 8731.16 | G62: 17462.32
A63: 60 | B63: ='筛选分析-数量 (求和)'!A71 -> 钢筋混凝土 沉泥井 A=1400（井高1.9m， 图集20s515-188)90 ° | C63: 1、井径:按设计图纸 2、混凝土强度等级:按设计图纸 3、其他：包含图纸、技术规范 所需全部工作内容 | D63: ='筛选分析-数量 (求和)'!C71 -> 座 | E63: 1.00 | F63: 1488.92 | G63: 1488.92
A64: 61 | B64: ='筛选分析-数量 (求和)'!A72 -> 钢筋混凝土 沉泥井 A=1700（井高1.92m， 图集20s515-188)90 ° | C64: 1、井径:按设计图纸 2、混凝土强度等级:按设计图纸 3、其他：包含图纸、技术规范 所需全部工作内容 | D64: ='筛选分析-数量 (求和)'!C72 -> 座 | E64: 2.00 | F64: 1961.43 | G64: 3922.86
A65: 62 | B65: ='筛选分析-数量 (求和)'!A73 -> 钢筋混凝土 沉泥井 A=2200（井高1.9m， 图集20s515-188)90 ° | C65: 1、井径:按设计图纸 2、混凝土强度等级:按设计图纸 3、其他：包含图纸、技术规范 所需全部工作内容 | D65: ='筛选分析-数量 (求和)'!C73 -> 座 | E65: 1.00 | F65: 3170.44 | G65: 3170.44
A66: 63 | B66: ='筛选分析-数量 (求和)'!A74 -> 钢筋混凝土 沉泥井 A=2400（井高1.9m， 图集20s515-188)90 ° | C66: 1、井径:按设计图纸 2、混凝土强度等级:按设计图纸 3、其他：包含图纸、技术规范 所需全部工作内容 | D66: ='筛选分析-数量 (求和)'!C74 -> 座 | E66: 2.00 | F66: 3543.92 | G66: 7087.84
A67: 64 | B67: ='筛选分析-数量 (求和)'!A75 -> 钢筋混凝土 沉泥井 A=2600（井高1.9m， 图集20s515-188)90 ° | C67: 1、井径:按设计图纸 2、混凝土强度等级:按设计图纸 3、其他：包含图纸、技术规范 所需全部工作内容 | D67: ='筛选分析-数量 (求和)'!C75 -> 座 | E67: 1.00 | F67: 4131.64 | G67: 4131.64
A68: 65 | B68: ='筛选分析-数量 (求和)'!A76 -> 钢筋混凝土 沉泥井 φ 1000（井高1.84m，DN400 图集20s515-29) | C68: 1、井径:按设计图纸 2、混凝土强度等级:按设计图纸 3、其他：包含图纸、技术规范 所需全部工作内容 | D68: ='筛选分析-数量 (求和)'!C76 -> 座 | E68: 2.00 | F68: 772.50 | G68: 1545.00
A69: 66 | B69: ='筛选分析-数量 (求和)'!A77 -> 钢筋混凝土 沉泥井 φ 1000（井高1.85m，DN500 图集20s515-29) | C69: 1、井径:按设计图纸 2、混凝土强度等级:按设计图纸 3、其他：包含图纸、技术规范 所需全部工作内容 | D69: ='筛选分析-数量 (求和)'!C77 -> 座 | E69: 2.00 | F69: 772.50 | G69: 1545.00
A70: 67 | B70: ='筛选分析-数量 (求和)'!A78 -> 钢筋混凝土 沉泥井 φ 1000（井高2.9m，DN500 图集20s515-313) | C70: 1、井径:按设计图纸 2、混凝土强度等级:按设计图纸 3、其他：包含图纸、技术规范 所需全部工作内容 | D70: ='筛选分析-数量 (求和)'!C78 -> 座 | E70: 11.00 | F70: 772.50 | G70: 8497.50
A71: 68 | B71: ='筛选分析-数量 (求和)'!A79 -> 钢筋混凝土 沉泥井 φ 1250（井高1.86m，DN600 图集20s515-29) | C71: 1、井径:按设计图纸 2、混凝土强度等级:按设计图纸 3、其他：包含图纸、技术规范 所需全部工作内容 | D71: ='筛选分析-数量 (求和)'!C79 -> 座 | E71: 2.00 | F71: 772.50 | G71: 1545.00
A72: 69 | B72: ='筛选分析-数量 (求和)'!A80 -> 钢筋混凝土 沉泥井 φ 1250（井高1.88m，DN800 图集20s515-29) | C72: 1、井径:按设计图纸 2、混凝土强度等级:按设计图纸 3、其他：包含图纸、技术规范 所需全部工作内容 | D72: ='筛选分析-数量 (求和)'!C80 -> 座 | E72: 1.00 | F72: 772.50 | G72: 772.50
A73: 70 | B73: ='筛选分析-数量 (求和)'!A81 -> 钢筋混凝土 沉泥井 φ 1500（井高3.4m，DN1000 图集20s515-313) | C73: 1、井径:按设计图纸 2、混凝土强度等级:按设计图纸 3、其他：包含图纸、技术规范 所需全部工作内容 | D73: ='筛选分析-数量 (求和)'!C81 -> 座 | E73: 1.00 | F73: 772.50 | G73: 772.50
A74: 71 | B74: ='筛选分析-数量 (求和)'!A82 -> 钢筋混凝土 沉泥井 φ 1800（井高1.91+0.5m，DN1000图集20s515-29) | C74: 1、井径:按设计图纸 2、混凝土强度等级:按设计图纸 3、其他：包含图纸、技术规范 所需全部工作内容 | D74: ='筛选分析-数量 (求和)'!C82 -> 座 | E74: 8.00 | F74: 772.50 | G74: 6180.00
A75: 72 | B75: ='筛选分析-数量 (求和)'!A83 -> 钢筋混凝土 沉泥井 φ 1800（井高1.9m，DN1000 图集20s515-29) | C75: 1、井径:按设计图纸 2、混凝土强度等级:按设计图纸 3、其他：包含图纸、技术规范 所需全部工作内容 | D75: ='筛选分析-数量 (求和)'!C83 -> 座 | E75: 1.00 | F75: 772.50 | G75: 772.50
A76: 73 | B76: ='筛选分析-数量 (求和)'!A84 -> 钢筋混凝土 沉泥井（1700+1200） × 1600（井高4.76m， 图集20s515-263)单圆形竖槽式跌水井1m | C76: 1、井径:按设计图纸 2、混凝土强度等级:按设计图纸 3、其他：包含图纸、技术规范 所需全部工作内容 | D76: ='筛选分析-数量 (求和)'!C84 -> 座 | E76: 1.00 | F76: 3053.23 | G76: 3053.23
A77: 74 | B77: ='筛选分析-数量 (求和)'!A85 -> 钢筋混凝土 沉泥井（2200+1200） × 1600（井高3.65m， 图集20s515-263)单圆形竖槽式跌水井1m | C77: 1、井径:按设计图纸 2、混凝土强度等级:按设计图纸 3、其他：包含图纸、技术规范 所需全部工作内容 | D77: ='筛选分析-数量 (求和)'!C85 -> 座 | E77: 1.00 | F77: 3227.45 | G77: 3227.45
A78: 75 | B78: ='筛选分析-数量 (求和)'!A86 -> 钢筋混凝土 沉泥井1200X1100（井高1.88+0.5m， 图集20s515-39) | C78: 1、井径:按设计图纸 2、混凝土强度等级:按设计图纸 3、其他：包含图纸、技术规范 所需全部工作内容 | D78: ='筛选分析-数量 (求和)'!C86 -> 座 | E78: 1.00 | F78: 1077.28 | G78: 1077.28
A79: 76 | B79: ='筛选分析-数量 (求和)'!A87 -> 钢筋混凝土 沉泥井1700X1100（井高1.92+0.5m， 图集20s515-39) | C79: 1、井径:按设计图纸 2、混凝土强度等级:按设计图纸 3、其他：包含图纸、技术规范 所需全部工作内容 | D79: ='筛选分析-数量 (求和)'!C87 -> 座 | E79: 1.00 | F79: 1115.39 | G79: 1115.39
A80: 77 | B80: ='筛选分析-数量 (求和)'!A88 -> 钢筋混凝土 沉泥井2200X1100（井高2.17+0.5m， 图集20s515-39) | C80: 1、井径:按设计图纸 2、混凝土强度等级:按设计图纸 3、其他：包含图纸、技术规范 所需全部工作内容 | D80: ='筛选分析-数量 (求和)'!C88 -> 座 | E80: 1.00 | F80: 1395.91 | G80: 1395.91
A81: 78 | B81: ='筛选分析-数量 (求和)'!A89 -> 钢筋混凝土 沉泥井2400X1100（井高2.41+0.5m， 图集20s515-39) | C81: 1、井径:按设计图纸 2、混凝土强度等级:按设计图纸 3、其他：包含图纸、技术规范 所需全部工作内容 | D81: ='筛选分析-数量 (求和)'!C89 -> 座 | E81: 10.00 | F81: 1554.06 | G81: 15540.60
A82: 79 | B82: ='筛选分析-数量 (求和)'!A90 -> 钢筋混凝土 单箅偏沟式雨水口（图集16S518-39）400X700 | C82: 1、井径:按设计图纸 2、混凝土强度等级:按设计图纸 3、其他：包含图纸、技术规范 所需全部工作内容 | D82: ='筛选分析-数量 (求和)'!C90 -> 座 | E82: 192.00 | F82: 82.40 | G82: 15820.80
A83: 80 | B83: ='筛选分析-数量 (求和)'!A91 -> 钢筋混凝土 单箅偏沟式雨水口（图集16S518-43）400X700 | C83: 1、井径:按设计图纸 2、混凝土强度等级:按设计图纸 3、其他：包含图纸、技术规范 所需全部工作内容 | D83: ='筛选分析-数量 (求和)'!C91 -> 座 | E83: 225.00 | F83: 82.40 | G83: 18540.00
A84: 81 | B84: ='筛选分析-数量 (求和)'!A92 -> 钢筋混凝土 跌水井 φ 1250（井高2.75m， 图集20s515-250) | C84: 1、井径:按设计图纸 2、混凝土强度等级:按设计图纸 3、其他：包含图纸、技术规范 所需全部工作内容 | D84: ='筛选分析-数量 (求和)'!C92 -> 座 | E84: 1.00 | F84: 772.50 | G84: 772.50
A85: 82 | B85: ='筛选分析-数量 (求和)'!A93 -> 钢筋混凝土 跌水井2100X1000（井高2.35m， 图集20s515-259) | C85: 1、井径:按设计图纸 2、混凝土强度等级:按设计图纸 3、其他：包含图纸、技术规范 所需全部工作内容 | D85: ='筛选分析-数量 (求和)'!C93 -> 座 | E85: 1.00 | F85: 1610.92 | G85: 1610.92
A86: 83 | B86: ='筛选分析-数量 (求和)'!A94 -> 钢筋混凝土 跌水井2100X1000（井高2.35m， 图集20s515-261) | C86: 1、井径:按设计图纸 2、混凝土强度等级:按设计图纸 3、其他：包含图纸、技术规范 所需全部工作内容 | D86: ='筛选分析-数量 (求和)'!C94 -> 座 | E86: 1.00 | F86: 1598.56 | G86: 1598.56
A87: 84 | B87: ='筛选分析-数量 (求和)'!A95 -> 钢筋混凝土 跌水井2100X1000（井高2.45m，DN400 图集20s515-259) | C87: 1、井径:按设计图纸 2、混凝土强度等级:按设计图纸 3、其他：包含图纸、技术规范 所需全部工作内容 | D87: ='筛选分析-数量 (求和)'!C95 -> 座 | E87: 2.00 | F87: 1629.98 | G87: 3259.96
A88: 85 | B88: ='筛选分析-数量 (求和)'!A96 -> 钢筋混凝土 跌水井2200X1100（井高2.35m， 图集20s515-259) | C88: 1、井径:按设计图纸 2、混凝土强度等级:按设计图纸 3、其他：包含图纸、技术规范 所需全部工作内容 | D88: ='筛选分析-数量 (求和)'!C96 -> 座 | E88: 1.00 | F88: 1633.79 | G88: 1633.79
A89: 86 | B89: ='筛选分析-数量 (求和)'!A97 -> 钢筋混凝土 跌水井2400X1600（井高2.85m，DN800， 图集20s515-263) | C89: 1、井径:按设计图纸 2、混凝土强度等级:按设计图纸 3、其他：包含图纸、技术规范 所需全部工作内容 | D89: ='筛选分析-数量 (求和)'!C97 -> 座 | E89: 2.00 | F89: 1961.27 | G89: 3922.54
A90: 87 | B90: ='筛选分析-数量 (求和)'!A98 -> 钢筋混凝土 跌水井3600X1600（井高2.35m， 图集20s515-272) | C90: 1、井径:按设计图纸 2、混凝土强度等级:按设计图纸 3、其他：包含图纸、技术规范 所需全部工作内容 | D90: ='筛选分析-数量 (求和)'!C98 -> 座 | E90: 1.00 | F90: 2742.32 | G90: 2742.32
A91: 88 | B91: ='筛选分析-数量 (求和)'!A99 -> 钢筋混凝土 检查井 1700×1100（井高1.90m， 图集20s515-59) | C91: 1、井径:按设计图纸 2、混凝土强度等级:按设计图纸 3、其他：包含图纸、技术规范 所需全部工作内容 | D91: ='筛选分析-数量 (求和)'!C99 -> 座 | E91: 1.00 | F91: 1828.46 | G91: 1828.46
A92: 89 | B92: ='筛选分析-数量 (求和)'!A100 -> 钢筋混凝土 检查井 1700×1500（井高1.90m， 图集20s515-122) | C92: 1、井径:按设计图纸 2、混凝土强度等级:按设计图纸 3、其他：包含图纸、技术规范 所需全部工作内容 | D92: ='筛选分析-数量 (求和)'!C100 -> 座 | E92: 1.00 | F92: 1909.31 | G92: 1909.31
A93: 90 | B93: ='筛选分析-数量 (求和)'!A101 -> 钢筋混凝土 检查井 1700×1700（井高1.90m， 图集20s515-59) | C93: 1、井径:按设计图纸 2、混凝土强度等级:按设计图纸 3、其他：包含图纸、技术规范 所需全部工作内容 | D93: ='筛选分析-数量 (求和)'!C101 -> 座 | E93: 1.00 | F93: 2015.20 | G93: 2015.20
A94: 91 | B94: ='筛选分析-数量 (求和)'!A102 -> 钢筋混凝土 检查井 A=1400（井高1.9m， 图集20s515-188)90 ° | C94: 1、井径:按设计图纸 2、混凝土强度等级:按设计图纸 3、其他：包含图纸、技术规范 所需全部工作内容 | D94: ='筛选分析-数量 (求和)'!C102 -> 座 | E94: 1.00 | F94: 1593.05 | G94: 1593.05
A95: 92 | B95: ='筛选分析-数量 (求和)'!A103 -> 钢筋混凝土 检查井 A=1700（井高1.92m， 图集20s515-188)90 ° | C95: 1、井径:按设计图纸 2、混凝土强度等级:按设计图纸 3、其他：包含图纸、技术规范 所需全部工作内容 | D95: ='筛选分析-数量 (求和)'!C103 -> 座 | E95: 1.00 | F95: 1954.79 | G95: 1954.79
A96: 93 | B96: ='筛选分析-数量 (求和)'!A104 -> 钢筋混凝土 检查井 A=2200（井高1.9m， 图集20s515-188)90 ° | C96: 1、井径:按设计图纸 2、混凝土强度等级:按设计图纸 3、其他：包含图纸、技术规范 所需全部工作内容 | D96: ='筛选分析-数量 (求和)'!C104 -> 座 | E96: 1.00 | F96: 2798.51 | G96: 2798.51
A97: 94 | B97: ='筛选分析-数量 (求和)'!A105 -> 钢筋混凝土 检查井 A=2200（井高2.17m， 图集20s515-188)90 ° | C97: 1、井径:按设计图纸 2、混凝土强度等级:按设计图纸 3、其他：包含图纸、技术规范 所需全部工作内容 | D97: ='筛选分析-数量 (求和)'!C105 -> 座 | E97: 1.00 | F97: 2825.19 | G97: 2825.19
A98: 95 | B98: ='筛选分析-数量 (求和)'!A106 -> 钢筋混凝土 检查井 A=2400（井高1.9m， 图集20s515-188)90 ° | C98: 1、井径:按设计图纸 2、混凝土强度等级:按设计图纸 3、其他：包含图纸、技术规范 所需全部工作内容 | D98: ='筛选分析-数量 (求和)'!C106 -> 座 | E98: 2.00 | F98: 2838.53 | G98: 5677.06
A99: 96 | B99: ='筛选分析-数量 (求和)'!A107 -> 钢筋混凝土 检查井 φ 1000（井高1.84m，DN300、DN400 图集20s515-29) | C99: 1、井径:按设计图纸 2、混凝土强度等级:按设计图纸 3、其他：包含图纸、技术规范 所需全部工作内容 | D99: ='筛选分析-数量 (求和)'!C107 -> 座 | E99: 123.00 | F99: 772.50 | G99: 95017.50
A100: 97 | B100: ='筛选分析-数量 (求和)'!A108 -> 钢筋混凝土 检查井 φ 1000（井高1.84m，DN400 图集20s515-29) | C100: 1、井径:按设计图纸 2、混凝土强度等级:按设计图纸 3、其他：包含图纸、技术规范 所需全部工作内容 | D100: ='筛选分析-数量 (求和)'!C108 -> 座 | E100: 12.00 | F100: 772.50 | G100: 9270.00
A101: 98 | B101: ='筛选分析-数量 (求和)'!A109 -> 钢筋混凝土 检查井 φ 1000（井高1.86m，DN600 图集20s515-29) | C101: 1、井径:按设计图纸 2、混凝土强度等级:按设计图纸 3、其他：包含图纸、技术规范 所需全部工作内容 | D101: ='筛选分析-数量 (求和)'!C109 -> 座 | E101: 224.00 | F101: 772.50 | G101: 173040.00
A102: 99 | B102: ='筛选分析-数量 (求和)'!A110 -> 钢筋混凝土 检查井 φ 1000（井高1.91m，DN600 图集20s515-29) | C102: 1、井径:按设计图纸 2、混凝土强度等级:按设计图纸 3、其他：包含图纸、技术规范 所需全部工作内容 | D102: ='筛选分析-数量 (求和)'!C110 -> 座 | E102: 10.00 | F102: 772.50 | G102: 7725.00
A103: 100 | B103: ='筛选分析-数量 (求和)'!A111 -> 钢筋混凝土 检查井 φ 1250（井高1.86m，DN500 图集20s515-29) | C103: 1、井径:按设计图纸 2、混凝土强度等级:按设计图纸 3、其他：包含图纸、技术规范 所需全部工作内容 | D103: ='筛选分析-数量 (求和)'!C111 -> 座 | E103: 5.00 | F103: 772.50 | G103: 3862.50
A104: 101 | B104: ='筛选分析-数量 (求和)'!A112 -> 钢筋混凝土 检查井 φ 1250（井高1.88m，DN800 图集20s515-29) | C104: 1、井径:按设计图纸 2、混凝土强度等级:按设计图纸 3、其他：包含图纸、技术规范 所需全部工作内容 | D104: ='筛选分析-数量 (求和)'!C112 -> 座 | E104: 18.00 | F104: 772.50 | G104: 13905.00
A105: 102 | B105: ='筛选分析-数量 (求和)'!A113 -> 钢筋混凝土 检查井 φ 1500（井高1.88m，DN600 图集20s515-29) | C105: 1、井径:按设计图纸 2、混凝土强度等级:按设计图纸 3、其他：包含图纸、技术规范 所需全部工作内容 | D105: ='筛选分析-数量 (求和)'!C113 -> 座 | E105: 23.00 | F105: 772.50 | G105: 17767.50
A106: 103 | B106: ='筛选分析-数量 (求和)'!A114 -> 钢筋混凝土 检查井 φ 1800（井高1.91m，DN1000 图集20s515-29) | C106: 1、井径:按设计图纸 2、混凝土强度等级:按设计图纸 3、其他：包含图纸、技术规范 所需全部工作内容 | D106: ='筛选分析-数量 (求和)'!C114 -> 座 | E106: 16.00 | F106: 772.50 | G106: 12360.00
A107: 104 | B107: ='筛选分析-数量 (求和)'!A115 -> 钢筋混凝土 检查井 φ 1800（井高1.9m，DN1000 图集20s515-29) | C107: 1、井径:按设计图纸 2、混凝土强度等级:按设计图纸 3、其他：包含图纸、技术规范 所需全部工作内容 | D107: ='筛选分析-数量 (求和)'!C115 -> 座 | E107: 5.00 | F107: 772.50 | G107: 3862.50
A108: 105 | B108: ='筛选分析-数量 (求和)'!A116 -> 钢筋混凝土 检查井 φ700（图集20s515-29) | C108: 1、井径:按设计图纸 2、混凝土强度等级:按设计图纸 3、其他：包含图纸、技术规范 所需全部工作内容 | D108: ='筛选分析-数量 (求和)'!C116 -> 座 | E108: 5.00 | F108: 772.50 | G108: 3862.50
A109: 106 | B109: ='筛选分析-数量 (求和)'!A117 -> 钢筋混凝土 检查井（井高1.5m， 图集20S515-328）700X700 | C109: 1、井径:按设计图纸 2、混凝土强度等级:按设计图纸 3、其他：包含图纸、技术规范 所需全部工作内容 | D109: ='筛选分析-数量 (求和)'!C117 -> 座 | E109: 26.00 | F109: 772.50 | G109: 20085.00
A110: 107 | B110: ='筛选分析-数量 (求和)'!A118 -> 钢筋混凝土 检查井（井高1m， 图集20S515-326）600X600 | C110: 1、井径:按设计图纸 2、混凝土强度等级:按设计图纸 3、其他：包含图纸、技术规范 所需全部工作内容 | D110: ='筛选分析-数量 (求和)'!C118 -> 座 | E110: 3.00 | F110: 772.50 | G110: 2317.50
A111: 108 | B111: ='筛选分析-数量 (求和)'!A119 -> 钢筋混凝土 检查井（井高1m， 图集20S515-328）700X700 | C111: 1、井径:按设计图纸 2、混凝土强度等级:按设计图纸 3、其他：包含图纸、技术规范 所需全部工作内容 | D111: ='筛选分析-数量 (求和)'!C119 -> 座 | E111: 11.00 | F111: 773.53 | G111: 8508.83
A112: 109 | B112: ='筛选分析-数量 (求和)'!A120 -> 钢筋混凝土 检查井1200X1100（井高1.88m， 图集20s515-39) | C112: 1、井径:按设计图纸 2、混凝土强度等级:按设计图纸 3、其他：包含图纸、技术规范 所需全部工作内容 | D112: ='筛选分析-数量 (求和)'!C120 -> 座 | E112: 2.00 | F112: 1123.47 | G112: 2246.94
A113: 110 | B113: ='筛选分析-数量 (求和)'!A121 -> 钢筋混凝土 检查井1400X1100（井高1.88m， 图集20s515-39) | C113: 1、井径:按设计图纸 2、混凝土强度等级:按设计图纸 3、其他：包含图纸、技术规范 所需全部工作内容 | D113: ='筛选分析-数量 (求和)'!C121 -> 座 | E113: 1.00 | F113: 1151.08 | G113: 1151.08
A114: 111 | B114: ='筛选分析-数量 (求和)'!A122 -> 钢筋混凝土 检查井1700X1100（井高1.88m， 图集20s515-39) | C114: 1、井径:按设计图纸 2、混凝土强度等级:按设计图纸 3、其他：包含图纸、技术规范 所需全部工作内容 | D114: ='筛选分析-数量 (求和)'!C122 -> 座 | E114: 5.00 | F114: 1241.97 | G114: 6209.85
A115: 112 | B115: ='筛选分析-数量 (求和)'!A123 -> 钢筋混凝土 检查井1700X1100（井高1.92m， 图集20s515-39) | C115: 1、井径:按设计图纸 2、混凝土强度等级:按设计图纸 3、其他：包含图纸、技术规范 所需全部工作内容 | D115: ='筛选分析-数量 (求和)'!C123 -> 座 | E115: 3.00 | F115: 1255.31 | G115: 3765.93
A116: 113 | B116: ='筛选分析-数量 (求和)'!A124 -> 钢筋混凝土 检查井1700X1500（井高1.9m， 图集20s515-122) | C116: 1、井径:按设计图纸 2、混凝土强度等级:按设计图纸 3、其他：包含图纸、技术规范 所需全部工作内容 | D116: ='筛选分析-数量 (求和)'!C124 -> 座 | E116: 1.00 | F116: 1278.18 | G116: 1278.18
A117: 114 | B117: ='筛选分析-数量 (求和)'!A125 -> 钢筋混凝土 检查井1900X1100（井高1.94m， 图集20s515-39) | C117: 1、井径:按设计图纸 2、混凝土强度等级:按设计图纸 3、其他：包含图纸、技术规范 所需全部工作内容 | D117: ='筛选分析-数量 (求和)'!C125 -> 座 | E117: 2.00 | F117: 1485.62 | G117: 2971.24
A118: 115 | B118: ='筛选分析-数量 (求和)'!A126 -> 钢筋混凝土 检查井2200X1100（井高2.17m， 图集20s515-39) | C118: 1、井径:按设计图纸 2、混凝土强度等级:按设计图纸 3、其他：包含图纸、技术规范 所需全部工作内容 | D118: ='筛选分析-数量 (求和)'!C126 -> 座 | E118: 5.00 | F118: 2001.91 | G118: 10009.55
A119: 116 | B119: ='筛选分析-数量 (求和)'!A127 -> 钢筋混凝土 检查井2200X1100（井高2.41m， 图集20s515-39) | C119: 1、井径:按设计图纸 2、混凝土强度等级:按设计图纸 3、其他：包含图纸、技术规范 所需全部工作内容 | D119: ='筛选分析-数量 (求和)'!C127 -> 座 | E119: 2.00 | F119: 2059.07 | G119: 4118.14
A120: 117 | B120: ='筛选分析-数量 (求和)'!A128 -> 钢筋混凝土 检查井2400X1100（井高2.41m， 图集20s515-39) | C120: 1、井径:按设计图纸 2、混凝土强度等级:按设计图纸 3、其他：包含图纸、技术规范 所需全部工作内容 | D120: ='筛选分析-数量 (求和)'!C128 -> 座 | E120: 11.00 | F120: 2148.94 | G120: 23638.34
A121: 118 | B121: ='筛选分析-数量 (求和)'!A129 -> 钢筋混凝土 检查井2600X1100（井高2.75m， 图集20s515-39) | C121: 1、井径:按设计图纸 2、混凝土强度等级:按设计图纸 3、其他：包含图纸、技术规范 所需全部工作内容 | D121: ='筛选分析-数量 (求和)'!C129 -> 座 | E121: 4.00 | F121: 2437.86 | G121: 9751.44
A122: 119 | B122: ='筛选分析-数量 (求和)'!A130 -> 钢筋混凝土 双箅偏沟式雨水口（图集16S518-43）400X700X2 | C122: 1、井径:按设计图纸 2、混凝土强度等级:按设计图纸 3、其他：包含图纸、技术规范 所需全部工作内容 | D122: ='筛选分析-数量 (求和)'!C130 -> 座 | E122: 286.00 | F122: 82.40 | G122: =ROUND(E122*F122,2) -> 23566.40
A123: 120 | B123: ='筛选分析-数量 (求和)'!A131 -> 钢筋混凝土 污水检查井 φ1000（井高1.84m，DN400图集20s515-30) | C123: 1、井径:按设计图纸 2、混凝土强度等级:按设计图纸 3、其他：包含图纸、技术规范 所需全部工作内容 | D123: ='筛选分析-数量 (求和)'!C131 -> 座 | E123: 1.00 | F123: 772.50 | G123: 772.50
A124: 121 | B124: ='筛选分析-数量 (求和)'!A132 -> 钢筋混凝土 污水检查井 φ1000（井高1.86m，DN400图集20s515-29) | C124: 1、井径:按设计图纸 2、混凝土强度等级:按设计图纸 3、其他：包含图纸、技术规范 所需全部工作内容 | D124: ='筛选分析-数量 (求和)'!C132 -> 座 | E124: 12.00 | F124: 772.50 | G124: 9270.00
A125: 122 | B125: ='筛选分析-数量 (求和)'!A133 -> 钢筋混凝土 污水检查井 φ1000（井高2.24m，DN400图集20s515-30) | C125: 1、井径:按设计图纸 2、混凝土强度等级:按设计图纸 3、其他：包含图纸、技术规范 所需全部工作内容 | D125: ='筛选分析-数量 (求和)'!C133 -> 座 | E125: 6.00 | F125: 772.50 | G125: 4635.00
A126: 123 | B126: ='筛选分析-数量 (求和)'!A134 -> 钢筋混凝土 污水检查井 φ1250（井高1.88m，DN800图集20s515-30) | C126: 1、井径:按设计图纸 2、混凝土强度等级:按设计图纸 3、其他：包含图纸、技术规范 所需全部工作内容 | D126: ='筛选分析-数量 (求和)'!C134 -> 座 | E126: 9.00 | F126: 772.50 | G126: 6952.50
A127: 124 | B127: ='筛选分析-数量 (求和)'!A135 -> 钢筋混凝土 污水检查井 φ1500（井高2.9m，DN1000图集20s515-29) | C127: 1、井径:按设计图纸 2、混凝土强度等级:按设计图纸 3、其他：包含图纸、技术规范 所需全部工作内容 | D127: ='筛选分析-数量 (求和)'!C135 -> 座 | E127: 2.00 | F127: 772.50 | G127: 1545.00
A128: 125 | B128: ='筛选分析-数量 (求和)'!A136 -> 钢筋混凝土 溢流井 680×380 井高1m | C128: 1、井径:按设计图纸 2、混凝土强度等级:按设计图纸 3、其他：包含图纸、技术规范 所需全部工作内容 | D128: ='筛选分析-数量 (求和)'!C136 -> 座 | E128: 1.00 | F128: 82.40 | G128: 82.40
A129: 126 | B129: ='筛选分析-数量 (求和)'!A137 -> 钢筋混凝土 溢流井（井高1m，详见大样图）700X400 | C129: 1、井径:按设计图纸 2、混凝土强度等级:按设计图纸 3、其他：包含图纸、技术规范 所需全部工作内容 | D129: ='筛选分析-数量 (求和)'!C137 -> 座 | E129: 7.00 | F129: 82.40 | G129: 576.80
A130: 127 | B130: ='筛选分析-数量 (求和)'!A138 -> 沟槽回填石屑 | C130: 1、密实度要求:按设计图纸要求 2、填方材料品种:石屑 3、其他：包含施工图纸、技术 规范所需全部工作内容 | D130: ='筛选分析-数量 (求和)'!C138 -> m3 | E130: 20426.31 | F130: 28.51 | G130: 582354.10
A131: 128 | B131: ='筛选分析-数量 (求和)'!A139 -> 沟槽回填土方（利用挖方） | C131: 1、密实度要求:按设计及规范要 求 2、填方材料品种:土方 3、其他：包含施工图纸、技术 规范所需全部工作内容 | D131: ='筛选分析-数量 (求和)'!C139 -> m3 | E131: 14162.88 | F131: 1.30 | G131: 18411.74
A132: 129 | B132: ='筛选分析-数量 (求和)'!A140 -> 管道封堵 | C132: 1、名称： 管道封堵 2、其他：包含图纸、技术规范 所需全部工作内容 | D132: ='筛选分析-数量 (求和)'!C140 -> 处 | E132: 296.00 | F132: 36.05 | G132: 10670.80
A133: 130 | B133: ='筛选分析-数量 (求和)'!A141 -> 管道封堵 DN300 | C133: 1、名称： 管道封堵 DN300 2、其他：包含图纸、技术规范 所需全部工作内容 | D133: ='筛选分析-数量 (求和)'!C141 -> 处 | E133: 36.00 | F133: 36.05 | G133: 1297.80
A134: 131 | B134: ='筛选分析-数量 (求和)'!A142 -> 管道基础模板 | C134: 1、名称： 模板 | D134: ='筛选分析-数量 (求和)'!C142 -> m2 | E134: 3468.30 | F134: 18.54 | G134: 64302.28
A135: 132 | B135: ='筛选分析-数量 (求和)'!A143 -> 花岗岩路缘石90×15×30cm | C135: 1.材料品种、 规格 ：花岗岩路 缘石90×15×30cm 2.其他：包含图纸、技术规范所 需全部工作内容 | D135: ='筛选分析-数量 (求和)'!C143 -> m | E135: 3691.70 | F135: 36.05 | G135: 133085.79
A136: 133 | B136: ='筛选分析-数量 (求和)'!A144 -> 换填1:1碎石砂 | C136: 1、密实度要求:按设计及规范要 求 2、填方材料品种:1:1碎石砂 3、其他：包含施工图纸、技术 规范所需全部工作内容 | D136: ='筛选分析-数量 (求和)'!C144 -> m3 | E136: 1612.66 | F136: 15.45 | G136: 24915.60
A137: 134 | B137: ='筛选分析-数量 (求和)'!A145 -> 混凝土出水口 D1650 | C137: 1、名称： 混凝土出水口 D1650 2、其他：包含图纸、技术规范 所需全部工作内容 | D137: ='筛选分析-数量 (求和)'!C145 -> 座 | E137: 1.00 | F137: 1030.00 | G137: 1030.00
A138: 135 | B138: ='筛选分析-数量 (求和)'!A146 -> 混凝土出水口 D1800 | C138: 1、名称： 混凝土出水口 D1800 2、其他：包含图纸、技术规范 所需全部工作内容 | D138: ='筛选分析-数量 (求和)'!C146 -> 座 | E138: 1.00 | F138: 2060.00 | G138: 2060.00
A139: 136 | B139: ='筛选分析-数量 (求和)'!A147 -> 混凝土出水口 D3000 | C139: 1、名称： 混凝土出水口 D3000 2、其他：包含图纸、技术规范 所需全部工作内容 | D139: ='筛选分析-数量 (求和)'!C147 -> 座 | E139: 1.00 | F139: 2060.00 | G139: 2060.00
A140: 137 | B140: ='筛选分析-数量 (求和)'!A148 -> 混凝土出水口 D400 | C140: 1、名称： 混凝土出水口 D3000 2、其他：包含图纸、技术规范 所需全部工作内容 | D140: ='筛选分析-数量 (求和)'!C148 -> 座 | E140: 2.00 | F140: 824.00 | G140: 1648.00
A141: 138 | B141: ='筛选分析-数量 (求和)'!A149 -> 混凝土垫层 C20 | C141: 1.混凝土强度等级：C20 2.其他：包含施工图纸、技术规 范所需全部工作内容 | D141: ='筛选分析-数量 (求和)'!C149 -> m3 | E141: 80.00 | F141: 67.44 | G141: 5395.20
A142: 139 | B142: ='筛选分析-数量 (求和)'!A150 -> 混凝土方沟 300×400 | C142: 1.断面规格：300×400mm 2.垫层、 基础材质及厚度： C15,100mm 3.混凝土强度等级:C30 P6 4.盖板材质、规格:球墨铸铁盖 板 | D142: ='筛选分析-数量 (求和)'!C150 -> m | E142: 5363.68 | F142: 25.75 | G142: 138114.76
A143: 140 | B143: ='筛选分析-数量 (求和)'!A151 -> 混凝土基础 C20包管 | C143: 1、混凝土强度等级:C20 2、其他：包含施工图纸、技术 规范所需全部工作内容 | D143: ='筛选分析-数量 (求和)'!C151 -> m3 | E143: 23.27 | F143: 67.44 | G143: 1569.33
A144: 141 | B144: ='筛选分析-数量 (求和)'!A152 -> 检查井周加强 | C144: 1.车行道上检查井应采用检查井 井周加强，井周80cm范围内采用 5%水稳碎石回填，作法详设计图 。 | D144: ='筛选分析-数量 (求和)'!C152 -> 座 | E144: 631.00 | F144: 618.00 | G144: 389958.00
A145: 142 | B145: ='筛选分析-数量 (求和)'!A153 -> 井壁模板 | C145: 1、名称： 模板 | D145: ='筛选分析-数量 (求和)'!C153 -> m2 | E145: 12859.82 | F145: 18.54 | G145: 238421.06
A146: 143 | B146: ='筛选分析-数量 (求和)'!A154 -> 井底模板 | C146: 1、名称： 模板 | D146: ='筛选分析-数量 (求和)'!C154 -> m2 | E146: 1490.10 | F146: 18.54 | G146: 27626.45
A147: 144 | B147: ='筛选分析-数量 (求和)'!A155 -> 立管断接 | C147: 1、名称： 管道封堵 2、其他：包含图纸、技术规范 所需全部工作内容 | D147: ='筛选分析-数量 (求和)'!C155 -> 处 | E147: 7.00 | F147: 82.40 | G147: 576.80
A148: 145 | B148: ='筛选分析-数量 (求和)'!A156 -> 立管断接 UPVC管 PVC-U排水管 DN200（含弯头、聚乙烯缓冲沉砂井等） | C148: 1、名称： 立管断接 UPVC管 PVC-U排水管 DN200（含弯头、 聚乙烯缓冲沉砂井等） 2、其他：包含图纸、技术规范 所需全部工作内容 | D148: ='筛选分析-数量 (求和)'!C156 -> 处 | E148: 106.00 | F148: 82.40 | G148: 8734.40
A149: 146 | B149: ='筛选分析-数量 (求和)'!A157 -> 立管接驳--UPVC管 PVC-U排水管 DN200 | C149: 1.材质及规格：PVC-U排水管 DN200 3.连接形式：按设计图纸要求 3.其他：包含图纸、技术规范所 需全部工作内容 | D149: ='筛选分析-数量 (求和)'!C157 -> m | E149: 1296.25 | F149: 15.45 | G149: 20027.06
A150: 147 | B150: ='筛选分析-数量 (求和)'!A158 -> 立柱式杆件φ89*4*5150mm | C150: 1.材料品种：立柱式杆件φ89*8*3500mm 2.滑动槽钢：采用LC4铝合金挤压型材，并符合GB/T6892-2006《铝及铝合金挤压型材》的规定 3.高强螺栓：高强连接螺栓和高强地脚下螺栓（包括相应的螺母、垫圈）应采用40B或45号钢（并镀锌） 4.预埋铁件：详见设计施工图 5.其他：含法兰盘、横梁加劲肋、抱箍、抱箍底衬、滑动螺栓、滑动螺母、垫圈、柱帽、柱脚收边、吊装等；满足设计规范及交通管理部门要求 6.满足使用功能 7.其他：满足设计图纸和相关规范要求 | D150: ='筛选分析-数量 (求和)'!C158 -> 套 | E150: 63.00 | F150: 185.40 | G150: 11680.20
A151: 148 | B151: ='筛选分析-数量 (求和)'!A159 -> 破除并修复围墙 | C151: 1.部位 2.材料品种、 规格 3.砂浆强度等级 4.泄水孔材料品种、 规格 5.滤水层要求 6.沉降缝要求 | D151: ='筛选分析-数量 (求和)'!C159 -> m | E151: 36.00 | F151: 421.48 | G151: 15173.28
A152: 149 | B152: ='筛选分析-数量 (求和)'!A160 -> 铺种草皮 | C152: 1.草皮种类 2.铺种方式 3.养护期 | D152: ='筛选分析-数量 (求和)'!C160 -> m2 | E152: 87.00 | F152: 15.45 | G152: 1344.15
A153: 150 | B153: ='筛选分析-数量 (求和)'!A161 -> 墙面脚手架 | C153: 1、名称： 脚手架 | D153: ='筛选分析-数量 (求和)'!C161 -> m2 | E153: 5713.51 | F153: 8.65 | G153: 49421.86
A154: 151 | B154: ='筛选分析-数量 (求和)'!A162 -> 球墨铸铁防坠网 | C154: 1.防坠网由检查井井盖厂家配套 提供,井框内壁配套预留6个防坠 网挂环,小区井框内应配套安装 与井盖相同材质的球墨铸铁或尼 龙防坠网,市政道路井框内应配 套安装与井盖相同材质的球墨铸 铁防坠网 | D154: ='筛选分析-数量 (求和)'!C162 -> 座 | E154: 560.00 | F154: 10.30 | G154: 5768.00
A155: 152 | B155: ='筛选分析-数量 (求和)'!A163 -> 人行横道标线 | C155: 1.名称：实线 2.材质：热熔型反光环保涂料 3.规格：综合 4.厚度：1.8mm 5.工艺：符合设计及相关规范要求 6.其他：满足施工规范及验收要求 | D155: ='筛选分析-数量 (求和)'!C163 -> m2 | E155: 683.80 | F155: 3.13 | G155: 2140.29
A156: 153 | B156: ='筛选分析-数量 (求和)'!A164 -> 砂垫层 | C156: 1、密实度要求:按设计及规范要 求 2、填方材料品种:砂垫层 3、其他：包含施工图纸、技术 规范所需全部工作内容 | D156: ='筛选分析-数量 (求和)'!C164 -> m3 | E156: 7191.08 | F156: 15.45 | G156: 111102.19
A157: 154 | B157: ='筛选分析-数量 (求和)'!A165 -> 水马1.3X0.65（摊销5次） | C157: 1.名称：A1装配式方钢结构 2.规格、型号：高度2.5米 3.其他符合规范及设计要求 | D157: ='筛选分析-数量 (求和)'!C165 -> m | E157: 6489.00 | F157: 3.61 | G157: 23425.29
A158: 155 | B158: ='筛选分析-数量 (求和)'!A166 -> 太阳能导向牌（1.4×0.4m） | C158: 1.交通标志板：太阳能导向牌（1.4×0.4m） 2.其它：满足设计规范及交通管理部门要求 | D158: ='筛选分析-数量 (求和)'!C166 -> 套 | E158: 22.00 | F158: 30.90 | G158: 679.80
A159: 156 | B159: ='筛选分析-数量 (求和)'!A167 -> 太阳能施工牌（1.2×0.5m） | C159: 1.交通标志板：太阳能施工牌（1.2×0.5m） 2.其它：满足设计规范及交通管理部门要求 | D159: ='筛选分析-数量 (求和)'!C167 -> 套 | E159: 194.00 | F159: 30.90 | G159: 5994.60
A160: 157 | B160: ='筛选分析-数量 (求和)'!A168 -> 铁马1.5X1m（摊销5次） | C160: 1.名称：A1装配式方钢结构 2.规格、型号：高度2.5米 3.其他符合规范及设计要求 | D160: ='筛选分析-数量 (求和)'!C168 -> m | E160: 680.00 | F160: 3.61 | G160: 2454.80
A161: 158 | B161: ='筛选分析-数量 (求和)'!A169 -> 挖沟槽石方（极软岩) | C161: 1、岩石类别:极软岩 2、开挖深度:综合考虑 3、其他：包含图纸、技术规范 所需全部工作内容 | D161: ='筛选分析-数量 (求和)'!C169 -> m3 | E161: 10496.17 | F161: 1.39 | G161: 14589.68
A162: 159 | B162: ='筛选分析-数量 (求和)'!A170 -> 挖沟槽石方（较软岩） | C162: 1、岩石类别:较软岩 2、开挖深度:综合考虑 3、其他：包含图纸、技术规范 所需全部工作内容 | D162: ='筛选分析-数量 (求和)'!C170 -> m3 | E162: 5248.10 | F162: 1.39 | G162: 7294.86
A163: 160 | B163: ='筛选分析-数量 (求和)'!A171 -> 挖沟槽土方 | C163: 1、土壤类别:综合考虑 2、挖土深度:综合考虑 3、其他：包含图纸、技术规范 所需全部工作内容 | D163: ='筛选分析-数量 (求和)'!C171 -> m3 | E163: 42062.23 | F163: 1.39 | G163: 58466.50
A164: 161 | B164: ='筛选分析-数量 (求和)'!A172 -> 挖淤泥、流砂 | C164: 1、淤泥类别:综合考虑 2、挖土深度:综合考虑 3、其他：包含图纸、技术规范 所需全部工作内容 | D164: ='筛选分析-数量 (求和)'!C172 -> m3 | E164: 258.99 | F164: 1.39 | G164: 360.00
A165: 162 | B165: ='筛选分析-数量 (求和)'!A174 -> 围堰 | C165: 1、名称： 围堰 | D165: ='筛选分析-数量 (求和)'!C174 -> m3 | E165: 846.00 | F165: 15.45 | G165: =ROUND(E165*F165,2) -> 13070.70
A166: 163 | B166: ='筛选分析-数量 (求和)'!A175 -> 污水管改道 钢带增强聚乙烯螺旋波纹管 DN400mmSN8.0 | C166: 1、材质及规格:钢带增强聚乙烯 螺旋波纹管、DN400mm SN8.0 2、其他：包含施工图纸、技术 规范所需全部工作内容 | D166: ='筛选分析-数量 (求和)'!C175 -> m | E166: 189.00 | F166: 44.81 | G166: 8469.09
A167: 164 | B167: ='筛选分析-数量 (求和)'!A176 -> 污水管检修孔 | C167: 1、名称：污水管检修孔 2、其他：包含图纸、技术规范 所需全部工作内容 | D167: ='筛选分析-数量 (求和)'!C176 -> 座 | E167: 2.00 | F167: 515.00 | G167: 1030.00
A168: 165 | B168: ='筛选分析-数量 (求和)'!A177 -> 现浇构件钢筋 螺纹钢HRB400 | C168: 1.钢筋种类：螺纹钢HRB400 2.规格：综合考虑 3.连接方式：综合（无论采用机 械连接与否，连接套筒均含在综 合单价内） 4.其它：满足设计及施工验收规 范要求 | D168: ='筛选分析-数量 (求和)'!C177 -> t | E168: 157.39 | F168: 1050.60 | G168: 165353.93
A169: 166 | B169: ='筛选分析-数量 (求和)'!A178 -> 现浇混凝土池壁（隔墙） | C169: 1.混凝土强度等级：C35 P6 2.其他：包含施工图纸、技术规 范所需全部工作内容 | D169: ='筛选分析-数量 (求和)'!C178 -> m3 | E169: 509.54 | F169: 82.40 | G169: 41986.10
A170: 167 | B170: ='筛选分析-数量 (求和)'!A179 -> 现浇混凝土池底 | C170: 1.混凝土强度等级：C35 P6 2.其他：包含施工图纸、技术规 范所需全部工作内容 | D170: ='筛选分析-数量 (求和)'!C179 -> m3 | E170: 307.34 | F170: 82.40 | G170: 25324.82
A171: 168 | B171: ='筛选分析-数量 (求和)'!A180 -> 现浇混凝土池盖板 | C171: 1.混凝土强度等级：C35 P6 2.其他：包含施工图纸、技术规 范所需全部工作内容 | D171: ='筛选分析-数量 (求和)'!C180 -> m3 | E171: 307.34 | F171: 82.40 | G171: 25324.82
A172: 169 | B172: ='筛选分析-数量 (求和)'!A181 -> 箱涵侧墙模板 | C172: 1、名称： 模板 | D172: ='筛选分析-数量 (求和)'!C181 -> m2 | E172: 1374.96 | F172: 18.54 | G172: 25491.76
A173: 170 | B173: ='筛选分析-数量 (求和)'!A182 -> 箱涵垫层模板 | C173: 1、名称： 模板 | D173: ='筛选分析-数量 (求和)'!C182 -> m2 | E173: 40.44 | F173: 18.54 | G173: 749.76
A174: 171 | B174: ='筛选分析-数量 (求和)'!A183 -> 箱涵顶板模板 | C174: 1、名称： 模板 | D174: ='筛选分析-数量 (求和)'!C183 -> m2 | E174: 606.60 | F174: 18.54 | G174: 11246.36
A175: 172 | B175: ='筛选分析-数量 (求和)'!A184 -> 箱涵滑（底）板模板 | C175: 1、名称： 模板 | D175: ='筛选分析-数量 (求和)'!C184 -> m2 | E175: 161.76 | F175: 18.54 | G175: 2999.03
A176: 173 | B176: ='筛选分析-数量 (求和)'!A186 -> 引孔后注粘土浆 比重1.4 | C176: 1、名称及规格：注粘土浆 比重 1.4 2、其他：包含施工图纸、技术 规范所需全部工作内容 | D176: ='筛选分析-数量 (求和)'!C186 -> m3 | E176: 4566.58 | F176: 10.30 | G176: 47035.77
A177: 174 | B177: ='筛选分析-数量 (求和)'!A191 -> 雨水井周加强 | C177: 1.车行道范围内的雨水口采用钢 筋混凝土加固，雨水口周围30cm 范围内采用5%水稳碎石回填，作 法详设计图。 | D177: ='筛选分析-数量 (求和)'!C191 -> 座 | E177: 727.00 | F177: 206.00 | G177: 149762.00
A178: 175 | B178: ='筛选分析-数量 (求和)'!A193 -> 雨水口 封盖 450X750X60混凝土盖板 | C178: 1、名称：雨水口 封盖 2、其他：包含图纸、技术规范 所需全部工作内容 | D178: ='筛选分析-数量 (求和)'!C193 -> 座 | E178: 282.00 | F178: 15.45 | G178: 4356.90
A179: 176 | B179: ='筛选分析-数量 (求和)'!A194 -> 植草沟 | C179: 1.材料品种、 规格 2.断面尺寸 | D179: ='筛选分析-数量 (求和)'!C194 -> m | E179: 25.00 | F179: 15.45 | G179: 386.25
A180: 177 | B180: ='筛选分析-数量 (求和)'!A195 -> 植草沟 B=500 | C180: 1.回填土质要求 2.取土运距 3.回填厚度 4.弃土运距 | D180: ='筛选分析-数量 (求和)'!C195 -> m | E180: 58.00 | F180: 15.45 | G180: 896.10
A181: 178 | B181: 安全文明施工费 | C181: 包括但不限于施工范围及附近所含道路范围内安全文明施工（施工范围内三宝四口五临边及安全通道转运安拆（单价含安全标识标语材料）、所有水平垂直防护网、兜网、挂网（单价含所有水平、垂直安全防护网材料）、踢脚板（或跳板）（单价含踢脚板或跳板材料）、楼层标志线（含标志线材料）、安全通道及加工棚水平垂直防护（单价含防护所有材料）、市政道路所有临边洞口防护（含防护材料）、办公区及生活区临时建筑搭拆、环境保护所设置的大门冲洗设施设备及施工大门进出口清洁维护、施工临时围挡搭拆、场内道路硬化、场内临时绿化、场内扬尘控制措施、垃圾封闭处理、工完场清的清洁及垃圾外运及弃渣费以及其他零星工程的人工、机械（机具）、所有材料；所有施工内容涉及劳务住宿费用、垂直运输机械基础制安、司机和信号工等全部劳务费用；现场一级配电箱(或箱变房）后的所有临电布置、现场主接水点后的所有临水布置；对施工范围内所有专业分包施工所产生的配合、吊装、转运。 | D181: 项 | E181: 1.00 | F181: 1510349.48 | G181: 1510349.48
A182: 179 | B182: 其它零星工程 | C182: 包括但不限于市政道路工程：施工范围内的冬雨季施工、二次搬运、工程定位复测、夜间施工；配合迎检进行场地布置及所有主体工程的收边收口等；除本清单项包含的内容外剩余的市政工程劳务均包含在本项当中（如人工、辅材、大小型机械或机具等） | D182: 项 | E182: 1.00 | F182: 123380.75 | G182: 123380.75
B183: 合计 | G183: =SUM(G4:G182) -> 7943629.29

Sheet 筛选分析-数量 (求和) (hidden)
A1: 项目名称 | B1: 数量 | C1: 单位 | D1: 单价 | E1: 人工 | F1: 机械 | G1: 材料 | H1: 合计 | I1: 人工费 | J1: 机械费 | K1: 材料费 | L1: 基础 | M1: 井身 | N1: 盖板 | O1: 钢筋 | P1: 井盖 | Q1: 井筒 | R1: 单价 | S1: 单价 | T1: 单价 | U1: 单价 | V1: 单价 | W1: 单价 | AA1: 人工费 | AB1: 机械费 | AC1: 材料费 | AF1: 备注
A2: 1:1碎石砂 | B2: 158.83 | C2: m3 | D2: 271.87 | E2: 15.00 | F2: 22.50 | G2: =153*0.5+177*0.5 -> 165.00 | H2: =SUM(E2:G2) -> 202.50 | I2: =ROUND(E2*1.03,2) -> 15.45 | J2: =ROUND(F2*1.03,2) -> 23.17 | K2: =ROUND(G2*1.13,2) -> 186.45 | AA2: =I2 -> 15.45 | AB2: =J2 -> 23.17 | AC2: =K2 -> 186.45 | AD2: =AA2+AB2+AC2 -> 225.07 | AE2: =D2*1.09261-AD2 -> 71.98 | AF2: =D2*B2 -> 43181
A3: 15cm C20水泥混凝土 | B3: 3487.77 | C3: m2 | D3: 69.6 | E3: 9.35 | F3: 3.55 | G3: =408*0.15 -> 61.20 | H3: 74.10 | I3: 9.63 | J3: 3.66 | K3: 69.16 | AA3: 9.63 | AB3: 3.66 | AC3: 69.16 | AD3: 82.45 | AE3: -6.40 | AF3: 242749
A4: 1cm 乳化沥青下封层 | B4: 13064.97 | C4: m2 | D4: 6.76 | E4: 0.50 | F4: 0.56 | G4: 1.35 | H4: 2.41 | I4: 0.52 | J4: 0.58 | K4: 1.53 | AA4: 0.52 | AB4: 0.58 | AC4: 1.53 | AD4: 2.63 | AE4: 4.76 | AF4: 88319
A5: 20cm 4%水泥稳定碎石 | B5: 13064.97 | C5: m2 | D5: 67.63 | E5: 7.00 | F5: 12.60 | G5: =235.9*0.2 -> 47.18 | H5: 66.78 | I5: 7.21 | J5: 12.98 | K5: 53.31 | AA5: 7.21 | AB5: 12.98 | AC5: 53.31 | AD5: 73.50 | AE5: 0.39 | AF5: 883584
A6: 20cm 5%水泥稳定碎石 | B6: 13064.97 | C6: m2 | D6: 68.65 | E6: 7.00 | F6: 12.60 | G6: =235.9*0.2 -> 47.18 | H6: 66.78 | I6: 7.21 | J6: 12.98 | K6: 53.31 | AA6: 7.21 | AB6: 12.98 | AC6: 53.31 | AD6: 73.50 | AE6: 1.51 | AF6: 896910
A7: 20cm 级配碎石 | B7: 23429.64 | C7: m2 | D7: 49.58 | E7: 5.54 | F7: 3.00 | G7: =153*0.2 -> 30.60 | H7: 39.14 | I7: 5.71 | J7: 3.09 | K7: 34.58 | AA7: 5.71 | AB7: 3.09 | AC7: 34.58 | AD7: 43.38 | AE7: 10.79 | AF7: 1161642
A8: 22cm C40水泥砼面层 | B8: 10364.67 | C8: m2 | D8: 115.75 | E8: 13.50 | G8: =457*0.22 -> 100.54 | H8: 114.04 | I8: 13.91 | J8: 0.00 | K8: 113.61 | AA8: 13.91 | AB8: 0.00 | AC8: 113.61 | AD8: 127.52 | AE8: -1.05 | AF8: 1199711
A9: 2cm水泥防水砂浆 | B9: 1800 | C9: m2 | D9: 20.02 | E9: 13.00 | F9: 0.00 | G9: 6.00 | H9: 19.00 | I9: 13.39 | J9: 0.00 | K9: 6.78 | AA9: 13.39 | AB9: 0.00 | AC9: 6.78 | AD9: 20.17 | AE9: 1.70 | AF9: 36036
A10: 5cm 细粒式改性沥青砼(AC-13C) | B10: 13064.97 | C10: m2 | D10: 76.19 | E10: 3.52 | F10: 5.45 | G10: =1250*0.05 -> 62.50 | H10: 71.47 | I10: 3.63 | J10: 5.61 | K10: 70.63 | AA10: 3.63 | AB10: 5.61 | AC10: 70.63 | AD10: 79.87 | AE10: 3.38 | AF10: 995420
A11: 5cm厚透水砖 | B11: 3487.77 | C11: m2 | D11: 107.11 | E11: 23.50 | F11: 11.35 | G11: 38.52 | H11: 73.37 | I11: 24.21 | J11: 11.69 | K11: 43.53 | AA11: 24.21 | AB11: 11.69 | AC11: 43.53 | AD11: 79.43 | AE11: 37.60 | AF11: 373575
A12: 7cm 中粒式沥青混凝土（AC-20C） | B12: 13064.97 | C12: m2 | D12: 94.15 | E12: 4.22 | F12: 6.54 | G12: =1195*0.07 -> 83.65 | H12: 94.41 | I12: 4.35 | J12: 6.74 | K12: 94.52 | AA12: 4.35 | AB12: 6.74 | AC12: 94.52 | AD12: 105.61 | AE12: -2.74 | AF12: 1230067
A13: Ⅱ级混凝土管 d1500 雨水管 | B13: 328.4 | C13: m | D13: 1311.98 | E13: 150.00 | F13: 35.00 | G13: =1192+30 -> 1222.00 | H13: 1407.00 | I13: 154.50 | J13: 36.05 | K13: 1380.86 | AA13: 154.50 | AB13: 36.05 | AC13: 1380.86 | AD13: 1571.41 | AE13: -137.93 | AF13: 430854
A14: Ⅱ级混凝土管 d1650 雨水管 | B14: 424.8 | C14: m | D14: 1527 | E14: 150.00 | F14: 35.00 | G14: =1311+30 -> 1341.00 | H14: 1526.00 | I14: 154.50 | J14: 36.05 | K14: 1515.33 | AA14: 154.50 | AB14: 36.05 | AC14: 1515.33 | AD14: 1705.88 | AE14: -37.46 | AF14: 648670
A15: Ⅱ级混凝土管 d1800 雨水管 | B15: 422 | C15: m | D15: 1647.74 | E15: 200.00 | F15: 35.00 | G15: =1342+30 -> 1372.00 | H15: 1607.00 | I15: 206.00 | J15: 36.05 | K15: 1550.36 | AA15: 206.00 | AB15: 36.05 | AC15: 1550.36 | AD15: 1792.41 | AE15: 7.93 | AF15: 695346
A16: Ⅱ级混凝土管 d1800 雨水管（远期预留） | B16: 17.56 | C16: m | D16: 1647.74 | E16: 200.00 | F16: 35.00 | G16: =1342+30 -> 1372.00 | H16: 1607.00 | I16: 206.00 | J16: 36.05 | K16: 1550.36 | AA16: 206.00 | AB16: 36.05 | AC16: 1550.36 | AD16: 1792.41 | AE16: 7.93 | AF16: 28934
A17: Ⅱ级混凝土管 d2000 雨水管 | B17: 277 | C17: m | D17: 1990.53 | E17: 200.00 | F17: 35.00 | G17: =1492+30 -> 1522.00 | H17: 1757.00 | I17: 206.00 | J17: 36.05 | K17: 1719.86 | AA17: 206.00 | AB17: 36.05 | AC17: 1719.86 | AD17: 1961.91 | AE17: 212.96 | AF17: 551377
A18: Ⅱ级混凝土管 d300 雨水管（包管） | B18: 2774.28 | C18: m | D18: 256.38 | E18: 65.00 | F18: 20.00 | G18: =70.3+15 -> 85.30 | H18: 170.30 | I18: 66.95 | J18: 20.60 | K18: 96.39 | AA18: 66.95 | AB18: 20.60 | AC18: 96.39 | AD18: 183.94 | AE18: 96.18 | AF18: 711270
A19: Ⅱ级混凝土管 d300（包管） | B19: 1080.47 | C19: m | D19: 259.07 | E19: 65.00 | F19: 20.00 | G19: =70.3+15 -> 85.30 | H19: 170.30 | I19: 66.95 | J19: 20.60 | K19: 96.39 | AA19: 66.95 | AB19: 20.60 | AC19: 96.39 | AD19: 183.94 | AE19: 99.12 | AF19: 279917
A20: 标线（热涂）1.8mm厚 | B20: 904.7 | C20: m2 | D20: 30.01 | E20: 3.00 | F20: 1.90 | G20: 27.00 | H20: 31.90 | I20: 3.09 | J20: 1.96 | K20: 30.51 | AA20: 3.09 | AB20: 1.96 | AC20: 30.51 | AD20: 35.56 | AE20: -2.77 | AF20: 27150
A21: 玻纤格栅 | B21: 13064.97 | C21: m2 | D21: 8.74 | E21: 2.00 | G21: 2.00 | H21: 4.00 | I21: 2.06 | J21: 0.00 | K21: 2.26 | AA21: 2.06 | AB21: 0.00 | AC21: 2.26 | AD21: 4.32 | AE21: 5.23 | AF21: 114188
A22: 仓面脚手架 | B22: 606.6 | C22: m2 | D22: 13.3 | E22: 8.40 | G22: 6.48 | H22: 14.88 | I22: 8.65 | J22: 0.00 | K22: 7.32 | AA22: 8.65 | AB22: 0.00 | AC22: 7.32 | AD22: 15.97 | AE22: -1.44 | AF22: 8068
A23: 槽钢引孔φ400 | B23: 60410.21 | C23: m | D23: 124.35 | E23: 10.00 | F23: 38.34 | G23: 15.17 | H23: 63.51 | I23: 10.30 | J23: 39.49 | K23: 17.14 | AA23: 10.30 | AB23: 39.49 | AC23: 17.14 | AD23: 66.93 | AE23: 68.94 | AF23: 7512010
A24: 槽型钢板桩（含支撑） | B24: 6334.868 | C24: t | D24: 814.05 | E24: 45.00 | F24: 40.00 | G24: 604.50 | H24: 689.50 | I24: 46.35 | J24: 41.20 | K24: 683.09 | AA24: 46.35 | AB24: 41.20 | AC24: 683.09 | AD24: 770.64 | AE24: 118.80 | AF24: 5156899
A25: 拆除侧、平（缘）石 | B25: 3689.3 | C25: m | D25: 2.3 | F25: 0.34 | H25: 0.34 | I25: 0.00 | J25: 0.35 | K25: 0.00 | AA25: 0.00 | AB25: 0.35 | AC25: 0.00 | AD25: 0.35 | AE25: 2.16 | AF25: 8485 | AH25: =#REF! -> 
A26: 拆除混凝土路面 22cm | B26: 10364.67 | C26: m2 | D26: 7.02 | F26: =375*8/249 -> 12.05 | H26: 12.05 | I26: 0.00 | J26: 12.41 | K26: 0.00 | AA26: 0.00 | AB26: 12.41 | AC26: 0.00 | AD26: 12.41 | AE26: -4.74 | AF26: 72760 | AH26: =#REF! -> 
A27: 拆除基层 | B27: 3507.17 | C27: m2 | D27: 11.04 | F27: 4.18 | H27: 4.18 | I27: 0.00 | J27: 4.31 | K27: 0.00 | AA27: 0.00 | AB27: 4.31 | AC27: 0.00 | AD27: 4.31 | AE27: 7.75 | AF27: 38719
A28: 拆除基层 15cm | B28: 3467.52 | C28: m2 | D28: 2.76 | F28: 4.18 | H28: 4.18 | I28: 0.00 | J28: 4.31 | K28: 0.00 | AA28: 0.00 | AB28: 4.31 | AC28: 0.00 | AD28: 4.31 | AE28: -1.29 | AF28: 9570
A29: 拆除基层 15cm厚 | B29: 835.79 | C29: m2 | D29: 11.04 | F29: 4.18 | H29: 4.18 | I29: 0.00 | J29: 4.31 | K29: 0.00 | AA29: 0.00 | AB29: 4.31 | AC29: 0.00 | AD29: 4.31 | AE29: 7.75 | AF29: 9227 | AH29: =AH26/0.03 -> 
A30: 拆除基层 20cm | B30: 10364.67 | C30: m2 | D30: 3.68 | F30: 4.18 | H30: 4.18 | I30: 0.00 | J30: 4.31 | K30: 0.00 | AA30: 0.00 | AB30: 4.31 | AC30: 0.00 | AD30: 4.31 | AE30: -0.29 | AF30: 38142
A31: 拆除基层 60cm厚 | B31: 9557.8 | C31: m2 | D31: 11.04 | F31: =F30*3 -> 12.54 | H31: 12.54 | I31: 0.00 | J31: 12.92 | K31: 0.00 | AA31: 0.00 | AB31: 12.92 | AC31: 0.00 | AD31: 12.92 | AE31: -0.86 | AF31: 105518
A32: 拆除沥青路面 | B32: 3507.17 | C32: m2 | D32: 3.58 | F32: 4.18 | H32: 4.18 | I32: 0.00 | J32: 4.31 | K32: 0.00 | AA32: 0.00 | AB32: 4.31 | AC32: 0.00 | AD32: 4.31 | AE32: -0.40 | AF32: 12556
A33: 拆除沥青路面 12cm厚 | B33: 9557.8 | C33: m2 | D33: 3.58 | F33: 4.18 | H33: 4.18 | I33: 0.00 | J33: 4.31 | K33: 0.00 | AA33: 0.00 | AB33: 4.31 | AC33: 0.00 | AD33: 4.31 | AE33: -0.40 | AF33: 34217
A34: 拆除人行道 | B34: 3487.77 | C34: m2 | D34: 0.93 | F34: 4.18 | H34: 4.18 | I34: 0.00 | J34: 4.31 | K34: 0.00 | AA34: 0.00 | AB34: 4.31 | AC34: 0.00 | AD34: 4.31 | AE34: -3.29 | AF34: 3244
A35: 成品硅砂雨水入渗井 | B35: 2 | C35: 座 | D35: 3000 | E35: 50.00 | G35: 1239.00 | H35: 1289.00 | I35: 51.50 | J35: 0.00 | K35: 1400.07 | AA35: 51.50 | AB35: 0.00 | AC35: 1400.07 | AD35: 1451.57 | AE35: 1826.26 | AF35: 6000
A36: 挡土板 密撑 | B36: 31576.93 | C36: m2 | D36: 16.06 | E36: 4.00 | G36: 10.00 | H36: 14.00 | I36: 4.12 | J36: 0.00 | K36: 11.30 | AA36: 4.12 | AB36: 0.00 | AC36: 11.30 | AD36: 15.42 | AE36: 2.13 | AF36: 507125
A37: 堤岸破除修复 HXL 4.4X5 | B37: 5 | C37: m | D37: 3500 | E37: 500.00 | G37: 1500.00 | H37: 2000.00 | I37: 515.00 | J37: 0.00 | K37: 1695.00 | AA37: 515.00 | AB37: 0.00 | AC37: 1695.00 | AD37: 2210.00 | AE37: 1614.14 | AF37: 17500
A38: 堤岸破除修复 HXL 6.5X5 | B38: 10 | C38: m | D38: 5000 | E38: 500.00 | G38: 3000.00 | H38: 3500.00 | I38: 515.00 | J38: 0.00 | K38: 3390.00 | AA38: 515.00 | AB38: 0.00 | AC38: 3390.00 | AD38: 3905.00 | AE38: 1558.05 | AF38: 50000
A39: 垫层模板 | B39: 1123.24 | C39: m2 | D39: 30.36 | E39: 18.00 | F39: 0.50 | G39: 38.00 | H39: 56.50 | I39: 18.54 | J39: 0.52 | K39: 42.94 | AA39: 18.54 | AB39: 0.52 | AC39: 42.94 | AD39: 62.00 | AE39: -28.83 | AF39: 34102
A40: 反光标志牌100cm×120cm | B40: 23 | C40: 套 | D40: 694.32 | E40: 100.00 | G40: 450.00 | H40: 550.00 | I40: 103.00 | J40: 0.00 | K40: 508.50 | AA40: 103.00 | AB40: 0.00 | AC40: 508.50 | AD40: 611.50 | AE40: 147.12 | AF40: 15969
A41: 反光标志牌80cm×60cm | B41: 52 | C41: 套 | D41: 417.41 | E41: 50.00 | G41: 275.00 | H41: 325.00 | I41: 51.50 | J41: 0.00 | K41: 310.75 | AA41: 51.50 | AB41: 0.00 | AC41: 310.75 | AD41: 362.25 | AE41: 93.82 | AF41: 21705
A42: 反光标志牌D=80cm | B42: 40 | C42: 套 | D42: 383.58 | E42: 50.00 | G42: 260.00 | H42: 310.00 | I42: 51.50 | J42: 0.00 | K42: 293.80 | AA42: 51.50 | AB42: 0.00 | AC42: 293.80 | AD42: 345.30 | AE42: 73.80 | AF42: 15343
A43: 方沟侧壁模板 | B43: 10046.92 | C43: m2 | D43: 44.54 | E43: 18.00 | F43: 0.50 | G43: 38.00 | H43: 56.50 | I43: 18.54 | J43: 0.52 | K43: 42.94 | AA43: 18.54 | AB43: 0.52 | AC43: 42.94 | AD43: 62.00 | AE43: -13.34 | AF43: 447490
A44: 方沟底板模板 | B44: 1820.14 | C44: m2 | D44: 38.8 | E44: 18.00 | F44: 0.50 | G44: 38.00 | H44: 56.50 | I44: 18.54 | J44: 0.52 | K44: 42.94 | AA44: 18.54 | AB44: 0.52 | AC44: 42.94 | AD44: 62.00 | AE44: -19.61 | AF44: 70621
A45: 防撞沙桶 | B45: 128 | C45: 个 | D45: 80 | E45: 10.00 | G45: 100.00 | H45: 110.00 | I45: 10.30 | J45: 0.00 | K45: 113.00 | AA45: 10.30 | AB45: 0.00 | AC45: 113.00 | AD45: 123.30 | AE45: -35.89 | AF45: 10240
A46: 钢带增强聚乙烯螺旋波纹管DN1000mm SN12.5 雨水管 | B46: 1069.5 | C46: m | D46: 753.04 | E46: 43.50 | G46: 1223.00 | H46: 1266.50 | I46: 44.81 | J46: 0.00 | K46: 1381.99 | AA46: 44.81 | AB46: 0.00 | AC46: 1381.99 | AD46: 1426.80 | AE46: -604.02 | AF46: 805376
A47: 钢带增强聚乙烯螺旋波纹管DN1000mm SN8.0 | B47: 32.3 | C47: m | D47: 725.99 | E47: 43.50 | G47: 1109.00 | H47: 1152.50 | I47: 44.81 | J47: 0.00 | K47: 1253.17 | AA47: 44.81 | AB47: 0.00 | AC47: 1253.17 | AD47: 1297.98 | AE47: -504.76 | AF47: 23449
A48: 钢带增强聚乙烯螺旋波纹管DN1200mm SN12.5 雨水管 | B48: 225.5 | C48: m | D48: 962.37 | E48: 43.50 | G48: 1650.00 | H48: 1693.50 | I48: 44.81 | J48: 0.00 | K48: 1864.50 | AA48: 44.81 | AB48: 0.00 | AC48: 1864.50 | AD48: 1909.31 | AE48: -857.81 | AF48: 217014
A49: 钢带增强聚乙烯螺旋波纹管DN300mm SN8.0 | B49: 679 | C49: m | D49: 122 | E49: 43.50 | G49: 141.00 | H49: 184.50 | I49: 44.81 | J49: 0.00 | K49: 159.33 | AA49: 44.81 | AB49: 0.00 | AC49: 159.33 | AD49: 204.14 | AE49: -70.84 | AF49: 82838
A50: 钢带增强聚乙烯螺旋波纹管DN300mm SN8.0 （污水管） | B50: 66.1 | C50: m | D50: 131.86 | E50: 43.50 | G50: 141.00 | H50: 184.50 | I50: 44.81 | J50: 0.00 | K50: 159.33 | AA50: 44.81 | AB50: 0.00 | AC50: 159.33 | AD50: 204.14 | AE50: -60.07 | AF50: 8716
A51: 钢带增强聚乙烯螺旋波纹管DN400mm SN12.5 污水管 | B51: 297.5 | C51: m | D51: 204.32 | E51: 43.50 | G51: 212.00 | H51: 255.50 | I51: 44.81 | J51: 0.00 | K51: 239.56 | AA51: 44.81 | AB51: 0.00 | AC51: 239.56 | AD51: 284.37 | AE51: -61.13 | AF51: 60785
A52: 钢带增强聚乙烯螺旋波纹管DN400mm SN12.5 雨水管 | B52: 883.3 | C52: m | D52: 193.74 | E52: 43.50 | G52: 212.00 | H52: 255.50 | I52: 44.81 | J52: 0.00 | K52: 239.56 | AA52: 44.81 | AB52: 0.00 | AC52: 239.56 | AD52: 284.37 | AE52: -72.69 | AF52: 171131
A53: 钢带增强聚乙烯螺旋波纹管DN400mm SN8.0 | B53: 5263.5 | C53: m | D53: 151.36 | E53: 43.50 | G53: 192.00 | H53: 235.50 | I53: 44.81 | J53: 0.00 | K53: 216.96 | AA53: 44.81 | AB53: 0.00 | AC53: 216.96 | AD53: 261.77 | AE53: -96.39 | AF53: 796683
A54: 钢带增强聚乙烯螺旋波纹管DN500mm SN12.5 雨水管 | B54: 483.6 | C54: m | D54: 266.14 | E54: 43.50 | G54: 386.00 | H54: 429.50 | I54: 44.81 | J54: 0.00 | K54: 436.18 | AA54: 44.81 | AB54: 0.00 | AC54: 436.18 | AD54: 480.99 | AE54: -190.20 | AF54: 128705
A55: 钢带增强聚乙烯螺旋波纹管DN500mm SN8.0 | B55: 949.36 | C55: m | D55: 239.08 | E55: 43.50 | G55: 351.00 | H55: 394.50 | I55: 44.81 | J55: 0.00 | K55: 396.63 | AA55: 44.81 | AB55: 0.00 | AC55: 396.63 | AD55: 441.44 | AE55: -180.22 | AF55: 226973
A56: 钢带增强聚乙烯螺旋波纹管DN600mm SN12.5 雨水管 | B56: 532.94 | C56: m | D56: 365.35 | E56: 43.50 | G56: 500.00 | H56: 543.50 | I56: 44.81 | J56: 0.00 | K56: 565.00 | AA56: 44.81 | AB56: 0.00 | AC56: 565.00 | AD56: 609.81 | AE56: -210.62 | AF56: 194710
A57: 钢带增强聚乙烯螺旋波纹管DN600mm SN12.5 雨水管孔网 | B57: 100 | C57: m | D57: 365.35 | E57: 43.50 | G57: 500.00 | H57: 543.50 | I57: 44.81 | J57: 0.00 | K57: 565.00 | AA57: 44.81 | AB57: 0.00 | AC57: 565.00 | AD57: 609.81 | AE57: -210.62 | AF57: 36535
A58: 钢带增强聚乙烯螺旋波纹管DN600mm SN8.0 | B58: 625 | C58: m | D58: 275.17 | E58: 43.50 | G58: 453.00 | H58: 496.50 | I58: 44.81 | J58: 0.00 | K58: 511.89 | AA58: 44.81 | AB58: 0.00 | AC58: 511.89 | AD58: 556.70 | AE58: -256.05 | AF58: 171981
A59: 钢带增强聚乙烯螺旋波纹管DN800mm SN12.5 | B59: 46.8 | C59: m | D59: 582.58 | E59: 43.50 | G59: 910.00 | H59: 953.50 | I59: 44.81 | J59: 0.00 | K59: 1028.30 | AA59: 44.81 | AB59: 0.00 | AC59: 1028.30 | AD59: 1073.11 | AE59: -436.58 | AF59: 27265
A60: 钢带增强聚乙烯螺旋波纹管DN800mm SN12.5 污水管 | B60: 215 | C60: m | D60: 582.58 | E60: 43.50 | G60: 910.00 | H60: 953.50 | I60: 44.81 | J60: 0.00 | K60: 1028.30 | AA60: 44.81 | AB60: 0.00 | AC60: 1028.30 | AD60: 1073.11 | AE60: -436.58 | AF60: 125255
A61: 钢带增强聚乙烯螺旋波纹管DN800mm SN12.5 雨水管 | B61: 375.2 | C61: m | D61: 565.33 | E61: 43.50 | G61: 910.00 | H61: 953.50 | I61: 44.81 | J61: 0.00 | K61: 1028.30 | AA61: 44.81 | AB61: 0.00 | AC61: 1028.30 | AD61: 1073.11 | AE61: -455.42 | AF61: 212112
A62: 钢带增强聚乙烯螺旋波纹管DN800mm SN12.5 雨水管（远期预留） | B62: 27.18 | C62: m | D62: 565.33 | E62: 43.50 | G62: 910.00 | H62: 953.50 | I62: 44.81 | J62: 0.00 | K62: 1028.30 | AA62: 44.81 | AB62: 0.00 | AC62: 1028.30 | AD62: 1073.11 | AE62: -455.42 | AF62: 15366
A63: 钢带增强聚乙烯螺旋波纹管DN800mm SN8.0 | B63: 205.2 | C63: m | D63: 484.18 | E63: 43.50 | G63: 825.00 | H63: 868.50 | I63: 44.81 | J63: 0.00 | K63: 932.25 | AA63: 44.81 | AB63: 0.00 | AC63: 932.25 | AD63: 977.06 | AE63: -448.04 | AF63: 99354
A64: 钢筋混凝土 沉泥井 1700×1100（井高1.80+0.5m， 图集20s515-39) | B64: 2 | C64: 座 | D64: 4402.45 | E64: =(L64+M64)*185+O64*1200+320 -> 1034.80 | F64: 220.00 | G64: 4070.50 | H64: 5325.30 | I64: 1065.84 | J64: 226.60 | K64: 4599.66 | L64: 0.34 | M64: 1.74 | N64: 1 | O64: 0.275 | P64: 1 | Q64: 1 | R64: 410 | S64: 450 | T64: 350 | U64: 3850 | V64: 400 | W64: 400 | AA64: 1065.84 | AB64: 226.60 | AC64: 4599.66 | AD64: 5892.10 | AE64: -1081.94 | AF64: 8805
A65: 钢筋混凝土 沉泥井 1700×1500（井高1.90+0.5m， 图集20s515-122) | B65: 7 | C65: 座 | D65: 6248.84 | E65: 1796.10 | F65: 220.00 | G65: 6605.95 | H65: 8622.05 | I65: 1849.98 | J65: 226.60 | K65: 7464.72 | L65: 1.95 | M65: 3.11 | N65: 1 | O65: 0.45 | P65: 1 | Q65: 1 | R65: 410 | S65: 450 | T65: 350 | U65: 3850 | V65: 400 | W65: 400 | AA65: 1849.98 | AB65: 226.60 | AC65: 7464.72 | AD65: 9541.30 | AE65: -2713.75 | AF65: 43742
A66: 钢筋混凝土 沉泥井 2100×1800（井高1.92+0.5m， 图集20s515-122) | B66: 2 | C66: 座 | D66: 8433.92 | E66: 1945.95 | F66: 220.00 | G66: 7079.80 | H66: =SUM(E66:G66) -> 9245.75 | I66: =ROUND(E66*1.03,2) -> 2004.33 | J66: =ROUND(F66*1.03,2) -> 226.60 | K66: =ROUND(G66*1.13,2) -> 8000.17 | L66: 1.95 | M66: 3.92 | N66: 1 | O66: 0.45 | P66: 1 | Q66: 1 | R66: 410 | S66: 450 | T66: 350 | U66: 3850 | V66: 400 | W66: 400 | AA66: =I66 -> 2004.33 | AB66: =J66 -> 226.60 | AC66: =K66 -> 8000.17 | AD66: =AA66+AB66+AC66 -> 10231.10 | AE66: =D66*1.09261-AD66 -> -1016.11 | AF66: =D66*B66 -> 16868
A67: 钢筋混凝土 沉泥井 2400×2000（井高1.94+0.5m， 图集20s515-122) | B67: 1 | C67: 座 | D67: 12014.56 | E67: 3725.65 | F67: 220.00 | G67: 12558.26 | H67: 16503.91 | I67: 3837.42 | J67: 226.60 | K67: 14190.83 | L67: 4.82 | M67: 10.67 | N67: 1 | O67: 0.45 | P67: 1 | Q67: 1 | R67: 410 | S67: 450 | T67: 350 | U67: 3850 | V67: 400 | W67: 400 | AA67: 3837.42 | AB67: 226.60 | AC67: 14190.83 | AD67: 18254.85 | AE67: -5127.62 | AF67: 12015
A68: 钢筋混凝土 沉泥井 2700×2300（井高2.17+0.5m， 图集20s515-122) | B68: 3 | C68: 座 | D68: 13534.42 | E68: 4882.80 | F68: 220.00 | G68: 17089.80 | H68: 22192.60 | I68: 5029.28 | J68: 226.60 | K68: 19311.47 | L68: 5.5 | M68: 11.38 | N68: 1 | O68: 1.2 | P68: 1 | Q68: 1 | R68: 410 | S68: 450 | T68: 350 | U68: 3850 | V68: 400 | W68: 400 | AA68: 5029.28 | AB68: 226.60 | AC68: 19311.47 | AD68: 24567.35 | AE68: -9779.51 | AF68: 40603
A69: 钢筋混凝土 沉泥井 3800×1600（井高5.56m， 图集20s515-263)单圆形竖槽式跌水井1m | B69: 1 | C69: 座 | D69: 15725.75 | E69: 3987.95 | F69: 220.00 | G69: 14623.18 | H69: 18831.13 | I69: 4107.59 | J69: 226.60 | K69: 16524.19 | L69: 2.01 | M69: 9.06 | N69: 1 | O69: 1.35 | P69: 1 | Q69: 1 | R69: 410 | S69: 450 | T69: 350 | U69: 3850 | V69: 400 | W69: 400 | AA69: 4107.59 | AB69: 226.60 | AC69: 16524.19 | AD69: 20858.38 | AE69: -3676.27 | AF69: 15726
A70: 钢筋混凝土 沉泥井 4000×3400（井高3.23m， 图集20s515-122) | B70: 2 | C70: 座 | D70: 36569.96 | E70: 8476.85 | F70: 220.00 | G70: 31007.86 | H70: 39704.71 | I70: 8731.16 | J70: 226.60 | K70: 35038.88 | L70: 5.87 | M70: 17.14 | N70: 1.2 | O70: 3.25 | P70: 1 | Q70: 1 | R70: 410 | S70: 450 | T70: 350 | U70: 3850 | V70: 400 | W70: 400 | AA70: 8731.16 | AB70: 226.60 | AC70: 35038.88 | AD70: 43996.64 | AE70: -4039.94 | AF70: 73140 | AH70: =AI70*1.03 -> 10.5884 | AI70: 10.28 | AJ70: =AI70/0.03 -> 342.6666667 | AK70: =AJ70+F70 -> 562.6666667
A71: 钢筋混凝土 沉泥井 A=1400（井高1.9m， 图集20s515-188)90 ° | B71: 1 | C71: 座 | D71: 5537.88 | E71: 1445.55 | F71: 229.33 | G71: 5101.46 | H71: 6776.34 | I71: 1488.92 | J71: 236.21 | K71: 5764.65 | L71: 0.72 | M71: 4.91 | N71: 1 | O71: 0.07 | P71: 1 | Q71: 1 | R71: 410 | S71: 450 | T71: 350 | U71: 3850 | V71: 400 | W71: 400 | AA71: 1488.92 | AB71: 236.21 | AC71: 5764.65 | AD71: 7489.78 | AE71: -1439.04 | AF71: 5538
A72: 钢筋混凝土 沉泥井 A=1700（井高1.92m， 图集20s515-188)90 ° | B72: 2 | C72: 座 | D72: 6013.91 | E72: 1904.30 | F72: 220.00 | G72: 6554.99 | H72: 8679.29 | I72: 1961.43 | J72: 226.60 | K72: 7407.14 | L72: 1.13 | M72: 6.85 | N72: 1 | O72: 0.09 | P72: 1 | Q72: 1 | R72: 410 | S72: 450 | T72: 350 | U72: 3850 | V72: 400 | W72: 400 | AA72: 1961.43 | AB72: 226.60 | AC72: 7407.14 | AD72: 9595.17 | AE72: -3024.31 | AF72: 12028
A73: 钢筋混凝土 沉泥井 A=2200（井高1.9m， 图集20s515-188)90 ° | B73: 1 | C73: 座 | D73: 10690.41 | E73: 3078.10 | F73: 220.00 | G73: 10263.76 | H73: 13561.86 | I73: 3170.44 | J73: 226.60 | K73: 11598.05 | L73: 1.42 | M73: 12.84 | N73: 1 | O73: 0.1 | P73: 1 | Q73: 1 | R73: 410 | S73: 450 | T73: 350 | U73: 3850 | V73: 400 | W73: 400 | AA73: 3170.44 | AB73: 226.60 | AC73: 11598.05 | AD73: 14995.09 | AE73: -3314.64 | AF73: 10690
A74: 钢筋混凝土 沉泥井 A=2400（井高1.9m， 图集20s515-188)90 ° | B74: 2 | C74: 座 | D74: 10943.32 | E74: 3440.70 | F74: 220.00 | G74: 11399.44 | H74: 15060.14 | I74: 3543.92 | J74: 226.60 | K74: 12881.37 | L74: 1.63 | M74: 14.59 | N74: 1 | O74: 0.1 | P74: 1 | Q74: 1 | R74: 410 | S74: 450 | T74: 350 | U74: 3850 | V74: 400 | W74: 400 | AA74: 3543.92 | AB74: 226.60 | AC74: 12881.37 | AD74: 16651.89 | AE74: -4695.11 | AF74: 21887
A75: 钢筋混凝土 沉泥井 A=2600（井高1.9m， 图集20s515-188)90 ° | B75: 1 | C75: 座 | D75: 13755.12 | E75: 4011.30 | F75: 220.00 | G75: 13251.29 | H75: 17482.59 | I75: 4131.64 | J75: 226.60 | K75: 14973.96 | L75: 1.88 | M75: 17.1 | N75: 1 | O75: 0.15 | P75: 1 | Q75: 1 | R75: 410 | S75: 450 | T75: 350 | U75: 3850 | V75: 400 | W75: 400 | AA75: 4131.64 | AB75: 226.60 | AC75: 14973.96 | AD75: 19332.20 | AE75: -4303.22 | AF75: 13755
A76: 钢筋混凝土 沉泥井 φ 1000（井高1.84m，DN400 图集20s515-29) | B76: 2 | C76: 座 | D76: 2388.5 | E76: 750.00 | F76: 220.00 | G76: 2100.00 | H76: 3070.00 | I76: 772.50 | J76: 226.60 | K76: 2373.00 | N76: 1 | P76: 1 | Q76: 1 | R76: 410 | S76: 450 | T76: 350 | U76: 3850 | V76: 400 | W76: 400 | AA76: 772.50 | AB76: 226.60 | AC76: 2373.00 | AD76: 3372.10 | AE76: -762.40 | AF76: 4777 | AG76: =F76+G76 -> 2320
A77: 钢筋混凝土 沉泥井 φ 1000（井高1.85m，DN500 图集20s515-29) | B77: 2 | C77: 座 | D77: 3294.15 | E77: 750.00 | F77: 220.00 | G77: 2100.00 | H77: 3070.00 | I77: 772.50 | J77: 226.60 | K77: 2373.00 | N77: 1 | P77: 1 | Q77: 1 | R77: 410 | S77: 450 | T77: 350 | U77: 3850 | V77: 400 | W77: 400 | AA77: 772.50 | AB77: 226.60 | AC77: 2373.00 | AD77: 3372.10 | AE77: 227.12 | AF77: 6588 | AG77: =F77+G77 -> 2320
A78: 钢筋混凝土 沉泥井 φ 1000（井高2.9m，DN500 图集20s515-313) | B78: 11 | C78: 座 | D78: 2330.21 | E78: 750.00 | F78: 220.00 | G78: 2659.00 | H78: 3629.00 | I78: 772.50 | J78: 226.60 | K78: 3004.67 | N78: 1 | P78: 1 | Q78: 1 | R78: 410 | S78: 450 | T78: 350 | U78: 3850 | V78: 400 | W78: 400 | AA78: 772.50 | AB78: 226.60 | AC78: 3004.67 | AD78: 4003.77 | AE78: -1457.76 | AF78: 25632 | AG78: 2879
A79: 钢筋混凝土 沉泥井 φ 1250（井高1.86m，DN600 图集20s515-29) | B79: 2 | C79: 座 | D79: 4127.24 | E79: 750.00 | F79: 220.00 | G79: 2152.00 | H79: 3122.00 | I79: 772.50 | J79: 226.60 | K79: 2431.76 | N79: 1 | P79: 1 | Q79: 1 | R79: 410 | S79: 450 | T79: 350 | U79: 3850 | V79: 400 | W79: 400 | AA79: 772.50 | AB79: 226.60 | AC79: 2431.76 | AD79: 3430.86 | AE79: 1078.60 | AF79: 8254 | AG79: 2372
A80: 钢筋混凝土 沉泥井 φ 1250（井高1.88m，DN800 图集20s515-29) | B80: 1 | C80: 座 | D80: 2622.73 | E80: 750.00 | F80: 220.00 | G80: 2152.00 | H80: 3122.00 | I80: 772.50 | J80: 226.60 | K80: 2431.76 | N80: 1 | P80: 1 | Q80: 1 | R80: 410 | S80: 450 | T80: 350 | U80: 3850 | V80: 400 | W80: 400 | AA80: 772.50 | AB80: 226.60 | AC80: 2431.76 | AD80: 3430.86 | AE80: -565.24 | AF80: 2623 | AG80: 2372
A81: 钢筋混凝土 沉泥井 φ 1500（井高3.4m，DN1000 图集20s515-313) | B81: 1 | C81: 座 | D81: 5902.21 | E81: 750.00 | F81: 220.00 | G81: 2672.00 | H81: 3642.00 | I81: 772.50 | J81: 226.60 | K81: 3019.36 | N81: 1 | P81: 1 | Q81: 1 | R81: 410 | S81: 450 | T81: 350 | U81: 3850 | V81: 400 | W81: 400 | AA81: 772.50 | AB81: 226.60 | AC81: 3019.36 | AD81: 4018.46 | AE81: 2430.35 | AF81: 5902 | AG81: 2892
A82: 钢筋混凝土 沉泥井 φ 1800（井高1.91+0.5m，DN1000图集20s515-29) | B82: 8 | C82: 座 | D82: 3995.7 | E82: 750.00 | F82: 220.00 | G82: 3322.00 | H82: 4292.00 | I82: 772.50 | J82: 226.60 | K82: 3753.86 | N82: 1 | P82: 1 | Q82: 1 | R82: 410 | S82: 450 | T82: 350 | U82: 3850 | V82: 400 | W82: 400 | AA82: 772.50 | AB82: 226.60 | AC82: 3753.86 | AD82: 4752.96 | AE82: -387.22 | AF82: 31966 | AG82: 3542
A83: 钢筋混凝土 沉泥井 φ 1800（井高1.9m，DN1000 图集20s515-29) | B83: 1 | C83: 座 | D83: 4754.91 | E83: 750.00 | F83: 220.00 | G83: 3322.00 | H83: 4292.00 | I83: 772.50 | J83: 226.60 | K83: 3753.86 | N83: 1 | P83: 1 | Q83: 1 | R83: 410 | S83: 450 | T83: 350 | U83: 3850 | V83: 400 | W83: 400 | AA83: 772.50 | AB83: 226.60 | AC83: 3753.86 | AD83: 4752.96 | AE83: 442.30 | AF83: 4755 | AG83: 3542
A84: 钢筋混凝土 沉泥井（1700+1200） × 1600（井高4.76m， 图集20s515-263)单圆形竖槽式跌水井1m | B84: 1 | C84: 座 | D84: 9866.79 | E84: =(L84+M84)*185+O84*1200+320 -> 2964.30 | F84: 220.00 | G84: 10799.23 | H84: 13983.53 | I84: 3053.23 | J84: 226.60 | K84: 12203.13 | L84: 1.66 | M84: 7.12 | N84: 1 | O84: 0.85 | P84: 1 | Q84: 1 | R84: 410 | S84: 450 | T84: 350 | U84: 3850 | V84: 400 | W84: 400 | AA84: 3053.23 | AB84: 226.60 | AC84: 12203.13 | AD84: 15482.96 | AE84: -4702.41 | AF84: 9867 | AG84: 11019.23
A85: 钢筋混凝土 沉泥井（2200+1200） × 1600（井高3.65m， 图集20s515-263)单圆形竖槽式跌水井1m | B85: 1 | C85: 座 | D85: 11747.32 | E85: 3133.45 | F85: 220.00 | G85: 11375.91 | H85: 14729.36 | I85: 3227.45 | J85: 226.60 | K85: 12854.78 | L85: 2.02 | M85: 7.35 | N85: 1 | O85: 0.9 | P85: 1 | Q85: 1 | R85: 410 | S85: 450 | T85: 350 | U85: 3850 | V85: 400 | W85: 400 | AA85: 3227.45 | AB85: 226.60 | AC85: 12854.78 | AD85: 16308.83 | AE85: -3473.59 | AF85: 11747 | AG85: 11595.91
A86: 钢筋混凝土 沉泥井1200X1100（井高1.88+0.5m， 图集20s515-39) | B86: 1 | C86: 座 | D86: 5414.73 | E86: 1045.90 | F86: 220.00 | G86: 4105.60 | H86: 5371.50 | I86: 1077.28 | J86: 226.60 | K86: 4639.32 | L86: 0.34 | M86: 1.8 | N86: 1 | O86: 0.275 | P86: 1 | Q86: 1 | R86: 410 | S86: 450 | T86: 350 | U86: 3850 | V86: 400 | W86: 400 | AA86: 1077.28 | AB86: 226.60 | AC86: 4639.32 | AD86: 5943.20 | AE86: -27.01 | AF86: 5415 | AG86: 4325.595
A87: 钢筋混凝土 沉泥井1700X1100（井高1.92+0.5m， 图集20s515-39) | B87: 1 | C87: 座 | D87: 4592.63 | E87: 1082.90 | F87: 220.00 | G87: 4222.60 | H87: 5525.50 | I87: 1115.39 | J87: 226.60 | K87: 4771.53 | L87: 0.34 | M87: 2 | N87: 1 | O87: 0.275 | P87: 1 | Q87: 1 | R87: 410 | S87: 450 | T87: 350 | U87: 3850 | V87: 400 | W87: 400 | AA87: 1115.39 | AB87: 226.60 | AC87: 4771.53 | AD87: 6113.52 | AE87: -1095.57 | AF87: 4593 | AG87: 4442.595
A88: 钢筋混凝土 沉泥井2200X1100（井高2.17+0.5m， 图集20s515-39) | B88: 1 | C88: 座 | D88: 6295.56 | E88: 1355.25 | F88: 220.00 | G88: 5105.75 | H88: 6681.00 | I88: 1395.91 | J88: 226.60 | K88: 5769.50 | L88: 0.5 | M88: 3.15 | N88: 1 | O88: 0.3 | P88: 1 | Q88: 1 | R88: 410 | S88: 450 | T88: 350 | U88: 3850 | V88: 400 | W88: 400 | AA88: 1395.91 | AB88: 226.60 | AC88: 5769.50 | AD88: 7392.01 | AE88: -513.42 | AF88: 6296 | AG88: 5325.75
A89: 钢筋混凝土 沉泥井2400X1100（井高2.41+0.5m， 图集20s515-39) | B89: 10 | C89: 座 | D89: 5803.61 | E89: 1508.80 | F89: 220.00 | G89: 5570.50 | H89: 7299.30 | I89: 1554.06 | J89: 226.60 | K89: 6294.67 | L89: 0.9 | M89: 3.58 | N89: 1 | O89: 0.3 | P89: 1 | Q89: 1 | R89: 410 | S89: 450 | T89: 350 | U89: 3850 | V89: 400 | W89: 400 | AA89: 1554.06 | AB89: 226.60 | AC89: 6294.67 | AD89: 8075.33 | AE89: -1734.25 | AF89: 58036 | AG89: 5790.5
A90: 钢筋混凝土 单箅偏沟式雨水口（图集16S518-39）400X700 | B90: 192 | C90: 座 | D90: 514.45 | E90: 80.00 | G90: 639.71 | H90: 719.71 | I90: 82.40 | J90: 0.00 | K90: 722.87 | N90: 1 | P90: 1 | Q90: 1 | R90: 410 | S90: 450 | T90: 350 | U90: 3850 | V90: 400 | W90: 400 | AA90: 82.40 | AB90: 0.00 | AC90: 722.87 | AD90: 805.27 | AE90: -243.18 | AF90: 98774 | AG90: 639.71
A91: 钢筋混凝土 单箅偏沟式雨水口（图集16S518-43）400X700 | B91: 225 | C91: 座 | D91: 474.06 | E91: 80.00 | G91: 639.71 | H91: 719.71 | I91: 82.40 | J91: 0.00 | K91: 722.87 | N91: 1 | P91: 1 | Q91: 1 | R91: 410 | S91: 450 | T91: 350 | U91: 3850 | V91: 400 | W91: 400 | AA91: 82.40 | AB91: 0.00 | AC91: 722.87 | AD91: 805.27 | AE91: -287.31 | AF91: 106664 | AG91: 639.71
A92: 钢筋混凝土 跌水井 φ 1250（井高2.75m， 图集20s515-250) | B92: 1 | C92: 座 | D92: 3395.2 | E92: 750.00 | F92: 220.00 | G92: 2737.00 | H92: 3707.00 | I92: 772.50 | J92: 226.60 | K92: 3092.81 | N92: 1 | P92: 1 | Q92: 1 | R92: 410 | S92: 450 | T92: 350 | U92: 3850 | V92: 400 | W92: 400 | AA92: 772.50 | AB92: 226.60 | AC92: 3092.81 | AD92: 4091.91 | AE92: -382.28 | AF92: 3395 | AG92: 2957
A93: 钢筋混凝土 跌水井2100X1000（井高2.35m， 图集20s515-259) | B93: 1 | C93: 座 | D93: 5603 | E93: =(L93+M93)*185+O93*1200+320 -> 1564.00 | F93: 220.00 | G93: 5911.10 | H93: 7695.10 | I93: 1610.92 | J93: 226.60 | K93: 6679.54 | L93: 0.5 | M93: 3.5 | N93: 1 | O93: 0.42 | P93: 1 | Q93: 1 | R93: 410 | S93: 450 | T93: 350 | U93: 3850 | V93: 400 | W93: 400 | AA93: 1610.92 | AB93: 226.60 | AC93: 6679.54 | AD93: 8517.06 | AE93: -2395.17 | AF93: 5603 | AG93: 6131.1
A94: 钢筋混凝土 跌水井2100X1000（井高2.35m， 图集20s515-261) | B94: 1 | C94: 座 | D94: 5734.89 | E94: 1552.00 | F94: 220.00 | G94: 5861.05 | H94: 7633.05 | I94: 1598.56 | J94: 226.60 | K94: 6622.99 | L94: 0.5 | M94: 3.5 | N94: 1 | O94: 0.41 | P94: 1 | Q94: 1 | R94: 410 | S94: 450 | T94: 350 | U94: 3850 | V94: 400 | W94: 400 | AA94: 1598.56 | AB94: 226.60 | AC94: 6622.99 | AD94: 8448.15 | AE94: -2182.15 | AF94: 5735 | AG94: =F94+G94 -> 6081.05
A95: 钢筋混凝土 跌水井2100X1000（井高2.45m，DN400 图集20s515-259) | B95: 2 | C95: 座 | D95: 5321.05 | E95: 1582.50 | F95: 220.00 | G95: 5964.40 | H95: 7766.90 | I95: 1629.98 | J95: 226.60 | K95: 6739.77 | L95: 0.6 | M95: 3.5 | N95: 1 | O95: 0.42 | P95: 1 | Q95: 1 | R95: 410 | S95: 450 | T95: 350 | U95: 3850 | V95: 400 | W95: 400 | AA95: 1629.98 | AB95: 226.60 | AC95: 6739.77 | AD95: 8596.35 | AE95: -2782.52 | AF95: 10642 | AG95: 6184.4
A96: 钢筋混凝土 跌水井2200X1100（井高2.35m， 图集20s515-259) | B96: 1 | C96: 座 | D96: 5866.79 | E96: 1586.20 | F96: 220.00 | G96: 5975.06 | H96: 7781.26 | I96: 1633.79 | J96: 226.60 | K96: 6751.82 | L96: 0.62 | M96: 3.5 | N96: 1 | O96: 0.42 | P96: 1 | Q96: 1 | R96: 410 | S96: 450 | T96: 350 | U96: 3850 | V96: 400 | W96: 400 | AA96: 1633.79 | AB96: 226.60 | AC96: 6751.82 | AD96: 8612.21 | AE96: -2202.10 | AF96: 5867 | AG96: 6195.06
A97: 钢筋混凝土 跌水井2400X1600（井高2.85m，DN800， 图集20s515-263) | B97: 2 | C97: 座 | D97: 8706.02 | E97: 1904.15 | F97: 220.00 | G97: 7071.87 | H97: 9196.02 | I97: 1961.27 | J97: 226.60 | K97: 7991.21 | L97: 1.19 | M97: 4 | N97: 1 | O97: 0.52 | P97: 1 | Q97: 1 | R97: 410 | S97: 450 | T97: 350 | U97: 3850 | V97: 400 | W97: 400 | AA97: 1961.27 | AB97: 226.60 | AC97: 7991.21 | AD97: 10179.08 | AE97: -666.80 | AF97: 17412 | AG97: 7291.87
A98: 钢筋混凝土 跌水井3600X1600（井高2.35m， 图集20s515-272) | B98: 1 | C98: 座 | D98: 10638.17 | E98: 2662.45 | F98: 220.00 | G98: 9566.57 | H98: 12449.02 | I98: 2742.32 | J98: 226.60 | K98: 10810.22 | L98: 1.19 | M98: 7.58 | N98: 1 | O98: 0.6 | P98: 1 | Q98: 1 | R98: 410 | S98: 450 | T98: 350 | U98: 3850 | V98: 400 | W98: 400 | AA98: 2742.32 | AB98: 226.60 | AC98: 10810.22 | AD98: 13779.14 | AE98: -2155.77 | AF98: 10638 | AG98: 9786.57
A99: 钢筋混凝土 检查井 1700×1100（井高1.90m， 图集20s515-59) | B99: 1 | C99: 座 | D99: 4470.48 | E99: 1775.20 | F99: 220.00 | G99: 6385.86 | H99: 8381.06 | I99: 1828.46 | J99: 226.60 | K99: 7216.02 | L99: 1.42 | M99: 4.5 | N99: 1 | O99: 0.3 | P99: 1 | Q99: 1 | R99: 410 | S99: 450 | T99: 350 | U99: 3850 | V99: 400 | W99: 400 | AA99: 1828.46 | AB99: 226.60 | AC99: 7216.02 | AD99: 9271.08 | AE99: -4386.59 | AF99: 4470 | AG99: 6605.86
A100: 钢筋混凝土 检查井 1700×1500（井高1.90m， 图集20s515-122) | B100: 1 | C100: 座 | D100: 6501.07 | E100: 1853.70 | F100: 220.00 | G100: 6715.41 | H100: 8789.11 | I100: 1909.31 | J100: 226.60 | K100: 7588.41 | L100: 1.02 | M100: 5 | N100: 1 | O100: 0.35 | P100: 1 | Q100: 1 | R100: 410 | S100: 450 | T100: 350 | U100: 3850 | V100: 400 | W100: 400 | AA100: 1909.31 | AB100: 226.60 | AC100: 7588.41 | AD100: 9724.32 | AE100: -2621.19 | AF100: 6501 | AG100: 6935.41
A101: 钢筋混凝土 检查井 1700×1700（井高1.90m， 图集20s515-59) | B101: 1 | C101: 座 | D101: 7386.4 | E101: 1956.50 | F101: 220.00 | G101: 6959.16 | H101: 9135.66 | I101: 2015.20 | J101: 226.60 | K101: 7863.85 | L101: 1.42 | M101: 5.48 | N101: 1 | O101: 0.3 | P101: 1 | Q101: 1 | R101: 410 | S101: 450 | T101: 350 | U101: 3850 | V101: 400 | W101: 400 | AA101: 2015.20 | AB101: 226.60 | AC101: 7863.85 | AD101: 10105.65 | AE101: -2035.20 | AF101: 7386 | AG101: 7179.16
A102: 钢筋混凝土 检查井 A=1400（井高1.9m， 图集20s515-188)90 ° | B102: 1 | C102: 座 | D102: 5537.88 | E102: 1546.65 | F102: 220.00 | G102: 5686.46 | H102: 7453.11 | I102: 1593.05 | J102: 226.60 | K102: 6425.70 | L102: 1.67 | M102: 2.82 | N102: 1 | O102: 0.33 | P102: 1 | Q102: 1 | R102: 410 | S102: 450 | T102: 350 | U102: 3850 | V102: 400 | W102: 400 | AA102: 1593.05 | AB102: 226.60 | AC102: 6425.70 | AD102: 8245.35 | AE102: -2194.61 | AF102: 5538 | AG102: 5906.46
A103: 钢筋混凝土 检查井 A=1700（井高1.92m， 图集20s515-188)90 ° | B103: 1 | C103: 座 | D103: 6589.28 | E103: 1897.85 | F103: 220.00 | G103: 6920.42 | H103: 9038.27 | I103: 1954.79 | J103: 226.60 | K103: 7820.07 | L103: 2.09 | M103: 3.52 | N103: 1 | O103: 0.45 | P103: 1 | Q103: 1 | R103: 410 | S103: 450 | T103: 350 | U103: 3850 | V103: 400 | W103: 400 | AA103: 1954.79 | AB103: 226.60 | AC103: 7820.07 | AD103: 10001.46 | AE103: -2801.95 | AF103: 6589 | AG103: 7140.42
A104: 钢筋混凝土 检查井 A=2200（井高1.9m， 图集20s515-188)90 ° | B104: 1 | C104: 座 | D104: 10690.41 | E104: 2717.00 | F104: 220.00 | G104: 9648.73 | H104: 12585.73 | I104: 2798.51 | J104: 226.60 | K104: 10903.06 | L104: 3.16 | M104: 5.84 | N104: 1 | O104: 0.61 | P104: 1 | Q104: 1 | R104: 410 | S104: 450 | T104: 350 | U104: 3850 | V104: 400 | W104: 400 | AA104: 2798.51 | AB104: 226.60 | AC104: 10903.06 | AD104: 13928.17 | AE104: -2247.72 | AF104: 10690 | AG104: 9868.73
A105: 钢筋混凝土 检查井 A=2200（井高2.17m， 图集20s515-188)90 ° | B105: 1 | C105: 座 | D105: 10474.85 | E105: 2742.90 | F105: 220.00 | G105: 9730.63 | H105: 12693.53 | I105: 2825.19 | J105: 226.60 | K105: 10995.61 | L105: 3.16 | M105: 5.98 | N105: 1 | O105: 0.61 | P105: 1 | Q105: 1 | R105: 410 | S105: 450 | T105: 350 | U105: 3850 | V105: 400 | W105: 400 | AA105: 2825.19 | AB105: 226.60 | AC105: 10995.61 | AD105: 14047.40 | AE105: -2602.47 | AF105: 10475 | AG105: 9950.63
A106: 钢筋混凝土 检查井 A=2400（井高1.9m， 图集20s515-188)90 ° | B106: 2 | C106: 座 | D106: 12761.11 | E106: 2755.85 | F106: 220.00 | G106: 9771.58 | H106: 12747.43 | I106: 2838.53 | J106: 226.60 | K106: 11041.89 | L106: 3.16 | M106: 6.05 | N106: 1 | O106: 0.61 | P106: 1 | Q106: 1 | R106: 410 | S106: 450 | T106: 350 | U106: 3850 | V106: 400 | W106: 400 | AA106: 2838.53 | AB106: 226.60 | AC106: 11041.89 | AD106: 14107.02 | AE106: -164.10 | AF106: 25522 | AG106: 9991.58
A107: 钢筋混凝土 检查井 φ 1000（井高1.84m，DN300、DN400 图集20s515-29) | B107: 123 | C107: 座 | D107: 2100.76 | E107: 750.00 | F107: 220.00 | G107: 2100.00 | H107: 3070.00 | I107: 772.50 | J107: 226.60 | K107: 2373.00 | N107: 1 | P107: 1 | Q107: 1 | R107: 410 | S107: 450 | T107: 350 | U107: 3850 | V107: 400 | W107: 400 | AA107: 772.50 | AB107: 226.60 | AC107: 2373.00 | AD107: 3372.10 | AE107: -1076.79 | AF107: 258393 | AG107: 2320
A108: 钢筋混凝土 检查井 φ 1000（井高1.84m，DN400 图集20s515-29) | B108: 12 | C108: 座 | D108: 2146.09 | E108: 750.00 | F108: 220.00 | G108: 2100.00 | H108: 3070.00 | I108: 772.50 | J108: 226.60 | K108: 2373.00 | N108: 1 | P108: 1 | Q108: 1 | R108: 410 | S108: 450 | T108: 350 | U108: 3850 | V108: 400 | W108: 400 | AA108: 772.50 | AB108: 226.60 | AC108: 2373.00 | AD108: 3372.10 | AE108: -1027.26 | AF108: 25753 | AG108: 2320
A109: 钢筋混凝土 检查井 φ 1000（井高1.86m，DN600 图集20s515-29) | B109: 224 | C109: 座 | D109: 2165.42 | E109: 750.00 | F109: 220.00 | G109: 2100.00 | H109: 3070.00 | I109: 772.50 | J109: 226.60 | K109: 2373.00 | N109: 1 | P109: 1 | Q109: 1 | R109: 410 | S109: 450 | T109: 350 | U109: 3850 | V109: 400 | W109: 400 | AA109: 772.50 | AB109: 226.60 | AC109: 2373.00 | AD109: 3372.10 | AE109: -1006.14 | AF109: 485054 | AG109: 2320
A110: 钢筋混凝土 检查井 φ 1000（井高1.91m，DN600 图集20s515-29) | B110: 10 | C110: 座 | D110: 2737.3 | E110: 750.00 | F110: 220.00 | G110: 2100.00 | H110: 3070.00 | I110: 772.50 | J110: 226.60 | K110: 2373.00 | N110: 1 | P110: 1 | Q110: 1 | R110: 410 | S110: 450 | T110: 350 | U110: 3850 | V110: 400 | W110: 400 | AA110: 772.50 | AB110: 226.60 | AC110: 2373.00 | AD110: 3372.10 | AE110: -381.30 | AF110: 27373 | AG110: 2320
A111: 钢筋混凝土 检查井 φ 1250（井高1.86m，DN500 图集20s515-29) | B111: 5 | C111: 座 | D111: 3126.79 | E111: 750.00 | F111: 220.00 | G111: 2152.00 | H111: 3122.00 | I111: 772.50 | J111: 226.60 | K111: 2431.76 | N111: 1 | P111: 1 | Q111: 1 | R111: 410 | S111: 450 | T111: 350 | U111: 3850 | V111: 400 | W111: 400 | AA111: 772.50 | AB111: 226.60 | AC111: 2431.76 | AD111: 3430.86 | AE111: -14.50 | AF111: 15634 | AG111: 2372
A112: 钢筋混凝土 检查井 φ 1250（井高1.88m，DN800 图集20s515-29) | B112: 18 | C112: 座 | D112: 2662.82 | E112: 750.00 | F112: 220.00 | G112: 2152.00 | H112: 3122.00 | I112: 772.50 | J112: 226.60 | K112: 2431.76 | N112: 1 | P112: 1 | Q112: 1 | R112: 410 | S112: 450 | T112: 350 | U112: 3850 | V112: 400 | W112: 400 | AA112: 772.50 | AB112: 226.60 | AC112: 2431.76 | AD112: 3430.86 | AE112: -521.44 | AF112: 47931 | AG112: 2372
A113: 钢筋混凝土 检查井 φ 1500（井高1.88m，DN600 图集20s515-29) | B113: 23 | C113: 座 | D113: 3213.22 | E113: 750.00 | F113: 220.00 | G113: 2672.00 | H113: 3642.00 | I113: 772.50 | J113: 226.60 | K113: 3019.36 | N113: 1 | P113: 1 | Q113: 1 | R113: 410 | S113: 450 | T113: 350 | U113: 3850 | V113: 400 | W113: 400 | AA113: 772.50 | AB113: 226.60 | AC113: 3019.36 | AD113: 4018.46 | AE113: -507.66 | AF113: 73904 | AG113: 2892
A114: 钢筋混凝土 检查井 φ 1800（井高1.91m，DN1000 图集20s515-29) | B114: 16 | C114: 座 | D114: 3928.9 | E114: 750.00 | F114: 220.00 | G114: 3322.00 | H114: 4292.00 | I114: 772.50 | J114: 226.60 | K114: 3753.86 | N114: 1 | P114: 1 | Q114: 1 | R114: 410 | S114: 450 | T114: 350 | U114: 3850 | V114: 400 | W114: 400 | AA114: 772.50 | AB114: 226.60 | AC114: 3753.86 | AD114: 4752.96 | AE114: -460.20 | AF114: 62862 | AG114: 3542
A115: 钢筋混凝土 检查井 φ 1800（井高1.9m，DN1000 图集20s515-29) | B115: 5 | C115: 座 | D115: 4535.23 | E115: 750.00 | F115: 220.00 | G115: 3322.00 | H115: 4292.00 | I115: 772.50 | J115: 226.60 | K115: 3753.86 | N115: 1 | P115: 1 | Q115: 1 | R115: 410 | S115: 450 | T115: 350 | U115: 3850 | V115: 400 | W115: 400 | AA115: 772.50 | AB115: 226.60 | AC115: 3753.86 | AD115: 4752.96 | AE115: 202.28 | AF115: 22676 | AG115: 3542
A116: 钢筋混凝土 检查井 φ700（图集20s515-29) | B116: 5 | C116: 座 | D116: 916.2 | E116: 750.00 | F116: 220.00 | G116: 1541.00 | H116: 2511.00 | I116: 772.50 | J116: 226.60 | K116: 1741.33 | N116: 1 | P116: 1 | Q116: 1 | R116: 410 | S116: 450 | T116: 350 | U116: 3850 | V116: 400 | W116: 400 | AA116: 772.50 | AB116: 226.60 | AC116: 1741.33 | AD116: 2740.43 | AE116: -1739.38 | AF116: 4581 | AG116: 1761
A117: 钢筋混凝土 检查井（井高1.5m， 图集20S515-328）700X700 | B117: 26 | C117: 座 | D117: 1172.64 | E117: 750.00 | F117: 220.00 | G117: 1560.00 | H117: 2530.00 | I117: 772.50 | J117: 226.60 | K117: 1762.80 | N117: 1 | P117: 1 | Q117: 1 | R117: 410 | S117: 450 | T117: 350 | U117: 3850 | V117: 400 | W117: 400 | AA117: 772.50 | AB117: 226.60 | AC117: 1762.80 | AD117: 2761.90 | AE117: -1480.66 | AF117: 30489 | AG117: 1780
A118: 钢筋混凝土 检查井（井高1m， 图集20S515-326）600X600 | B118: 3 | C118: 座 | D118: 1704.83 | E118: 750.00 | F118: 220.00 | G118: 780.00 | H118: 1750.00 | I118: 772.50 | J118: 226.60 | K118: 881.40 | N118: 1 | P118: 1 | Q118: 1 | R118: 410 | S118: 450 | T118: 350 | U118: 3850 | V118: 400 | W118: 400 | AA118: 772.50 | AB118: 226.60 | AC118: 881.40 | AD118: 1880.50 | AE118: -17.79 | AF118: 5114 | AG118: 1000
A119: 钢筋混凝土 检查井（井高1m， 图集20S515-328）700X700 | B119: 11 | C119: 座 | D119: 765.86 | E119: 751.00 | F119: 220.00 | G119: 845.00 | H119: 1816.00 | I119: 773.53 | J119: 226.60 | K119: 954.85 | N119: 1 | P119: 1 | Q119: 1 | R119: 410 | S119: 450 | T119: 350 | U119: 3850 | V119: 400 | W119: 400 | AA119: 773.53 | AB119: 226.60 | AC119: 954.85 | AD119: 1954.98 | AE119: -1118.19 | AF119: 8424 | AG119: =F119+G119 -> 1065
A120: 钢筋混凝土 检查井1200X1100（井高1.88m， 图集20s515-39) | B120: 2 | C120: 座 | D120: 3954.32 | E120: =(L120+M120)*185+O120*1200+320 -> 1090.75 | F120: 220.00 | G120: 4239.43 | H120: 5550.18 | I120: 1123.47 | J120: 226.60 | K120: 4790.56 | L120: 0.61 | M120: 1.74 | N120: 1 | O120: 0.28 | P120: 1 | Q120: 1 | R120: 410 | S120: 450 | T120: 350 | U120: 3850 | V120: 400 | W120: 400 | AA120: 1123.47 | AB120: 226.60 | AC120: 4790.56 | AD120: 6140.63 | AE120: -1820.10 | AF120: 7909 | AG120: 4459.43
A121: 钢筋混凝土 检查井1400X1100（井高1.88m， 图集20s515-39) | B121: 1 | C121: 座 | D121: 5175.67 | E121: 1117.55 | F121: 220.00 | G121: 4332.64 | H121: 5670.19 | I121: 1151.08 | J121: 226.60 | K121: 4895.88 | L121: 0.68 | M121: 1.75 | N121: 1 | O121: 0.29 | P121: 1 | Q121: 1 | R121: 410 | S121: 450 | T121: 350 | U121: 3850 | V121: 400 | W121: 400 | AA121: 1151.08 | AB121: 226.60 | AC121: 4895.88 | AD121: 6273.56 | AE121: -618.57 | AF121: 5176 | AG121: 4552.64
A122: 钢筋混凝土 检查井1700X1100（井高1.88m， 图集20s515-39) | B122: 5 | C122: 座 | D122: 3063.51 | E122: 1205.80 | F122: 220.00 | G122: 4644.19 | H122: 6069.99 | I122: 1241.97 | J122: 226.60 | K122: 5247.93 | L122: 0.87 | M122: 1.81 | N122: 1 | O122: 0.325 | P122: 1 | Q122: 1 | R122: 410 | S122: 450 | T122: 350 | U122: 3850 | V122: 400 | W122: 400 | AA122: 1241.97 | AB122: 226.60 | AC122: 5247.93 | AD122: 6716.50 | AE122: -3369.28 | AF122: 15318 | AG122: 4864.185
A123: 钢筋混凝土 检查井1700X1100（井高1.92m， 图集20s515-39) | B123: 3 | C123: 座 | D123: 4605.49 | E123: 1218.75 | F123: 220.00 | G123: 4685.14 | H123: 6123.89 | I123: 1255.31 | J123: 226.60 | K123: 5294.20 | L123: 0.87 | M123: 1.88 | N123: 1 | O123: 0.325 | P123: 1 | Q123: 1 | R123: 410 | S123: 450 | T123: 350 | U123: 3850 | V123: 400 | W123: 400 | AA123: 1255.31 | AB123: 226.60 | AC123: 5294.20 | AD123: 6776.11 | AE123: -1744.11 | AF123: 13816 | AG123: 4905.135
A124: 钢筋混凝土 检查井1700X1500（井高1.9m， 图集20s515-122) | B124: 1 | C124: 座 | D124: 6311.6 | E124: 1240.95 | F124: 220.00 | G124: 4755.34 | H124: 6216.29 | I124: 1278.18 | J124: 226.60 | K124: 5373.53 | L124: 0.87 | M124: 2 | N124: 1 | O124: 0.325 | P124: 1 | Q124: 1 | R124: 410 | S124: 450 | T124: 350 | U124: 3850 | V124: 400 | W124: 400 | AA124: 1278.18 | AB124: 226.60 | AC124: 5373.53 | AD124: 6878.31 | AE124: 17.81 | AF124: 6312 | AG124: 4975.335
A125: 钢筋混凝土 检查井1900X1100（井高1.94m， 图集20s515-39) | B125: 2 | C125: 座 | D125: 5374.97 | E125: 1442.35 | F125: 220.00 | G125: 5505.44 | H125: 7167.79 | I125: 1485.62 | J125: 226.60 | K125: 6221.14 | L125: 1.02 | M125: 2.29 | N125: 1 | O125: 0.425 | P125: 1 | Q125: 1 | R125: 410 | S125: 450 | T125: 350 | U125: 3850 | V125: 400 | W125: 400 | AA125: 1485.62 | AB125: 226.60 | AC125: 6221.14 | AD125: 7933.36 | AE125: -2060.61 | AF125: 10750 | AG125: 5725.435
A126: 钢筋混凝土 检查井2200X1100（井高2.17m， 图集20s515-39) | B126: 5 | C126: 座 | D126: 5308.21 | E126: 1943.60 | F126: 220.00 | G126: 7338.37 | H126: 9501.97 | I126: 2001.91 | J126: 226.60 | K126: 8292.36 | L126: 1.49 | M126: 3.07 | N126: 1 | O126: 0.65 | P126: 1 | Q126: 1 | R126: 410 | S126: 450 | T126: 350 | U126: 3850 | V126: 400 | W126: 400 | AA126: 2001.91 | AB126: 226.60 | AC126: 8292.36 | AD126: 10520.87 | AE126: -4721.07 | AF126: 26541 | AG126: 7558.37
A127: 钢筋混凝土 检查井2200X1100（井高2.41m， 图集20s515-39) | B127: 2 | C127: 座 | D127: 5618.88 | E127: 1999.10 | F127: 220.00 | G127: 7513.87 | H127: 9732.97 | I127: 2059.07 | J127: 226.60 | K127: 8490.67 | L127: 1.49 | M127: 3.37 | N127: 1 | O127: 0.65 | P127: 1 | Q127: 1 | R127: 410 | S127: 450 | T127: 350 | U127: 3850 | V127: 400 | W127: 400 | AA127: 2059.07 | AB127: 226.60 | AC127: 8490.67 | AD127: 10776.34 | AE127: -4637.10 | AF127: 11238 | AG127: 7733.87
A128: 钢筋混凝土 检查井2400X1100（井高2.41m， 图集20s515-39) | B128: 11 | C128: 座 | D128: 5725.13 | E128: 2086.35 | F128: 220.00 | G128: 7864.29 | H128: 10170.64 | I128: 2148.94 | J128: 226.60 | K128: 8886.64 | L128: 1.57 | M128: 3.34 | N128: 1 | O128: 0.715 | P128: 1 | Q128: 1 | R128: 410 | S128: 450 | T128: 350 | U128: 3850 | V128: 400 | W128: 400 | AA128: 2148.94 | AB128: 226.60 | AC128: 8886.64 | AD128: 11262.18 | AE128: -5006.85 | AF128: 62976 | AG128: 8084.285
A129: 钢筋混凝土 检查井2600X1100（井高2.75m， 图集20s515-39) | B129: 4 | C129: 座 | D129: 6357.05 | E129: 2366.85 | F129: 220.00 | G129: 8854.82 | H129: 11441.67 | I129: 2437.86 | J129: 226.60 | K129: 10005.95 | L129: 1.79 | M129: 4.02 | N129: 1 | O129: 0.81 | P129: 1 | Q129: 1 | R129: 410 | S129: 450 | T129: 350 | U129: 3850 | V129: 400 | W129: 400 | AA129: 2437.86 | AB129: 226.60 | AC129: 10005.95 | AD129: 12670.41 | AE129: -5724.63 | AF129: 25428 | AG129: 9074.82
A130: 钢筋混凝土 双箅偏沟式雨水口（图集16S518-43）400X700X2 | B130: 286 | C130: 座 | D130: 948.12 | E130: 80.00 | G130: 1197.45 | H130: =SUM(E130:G130) -> 1277.45 | I130: =ROUND(E130*1.03,2) -> 82.40 | J130: =ROUND(F130*1.03,2) -> 0.00 | K130: =ROUND(G130*1.13,2) -> 1353.12 | N130: 1 | P130: 1 | Q130: 1 | R130: 410 | S130: 450 | T130: 350 | U130: 3850 | V130: 400 | W130: 400 | AA130: =I130 -> 82.40 | AB130: =J130 -> 0.00 | AC130: =K130 -> 1353.12 | AD130: =AA130+AB130+AC130 -> 1435.52 | AE130: =D130*1.09261-AD130 -> -399.59 | AF130: =D130*B130 -> 271162 | AG130: 1197.449
A131: 钢筋混凝土 污水检查井 φ1000（井高1.84m，DN400图集20s515-30) | B131: 1 | C131: 座 | D131: 2952.83 | E131: 750.00 | F131: 220.00 | G131: 2100.00 | H131: 3070.00 | I131: 772.50 | J131: 226.60 | K131: 2373.00 | N131: 1 | P131: 1 | Q131: 1 | R131: 410 | S131: 450 | T131: 350 | U131: 3850 | V131: 400 | W131: 400 | AA131: 772.50 | AB131: 226.60 | AC131: 2373.00 | AD131: 3372.10 | AE131: -145.81 | AF131: 2953 | AG131: 2320
A132: 钢筋混凝土 污水检查井 φ1000（井高1.86m，DN400图集20s515-29) | B132: 12 | C132: 座 | D132: 2903.74 | E132: 750.00 | F132: 220.00 | G132: 2100.00 | H132: 3070.00 | I132: 772.50 | J132: 226.60 | K132: 2373.00 | N132: 1 | P132: 1 | Q132: 1 | R132: 410 | S132: 450 | T132: 350 | U132: 3850 | V132: 400 | W132: 400 | AA132: 772.50 | AB132: 226.60 | AC132: 2373.00 | AD132: 3372.10 | AE132: -199.44 | AF132: 34845 | AG132: 2320
A133: 钢筋混凝土 污水检查井 φ1000（井高2.24m，DN400图集20s515-30) | B133: 6 | C133: 座 | D133: 2612.95 | E133: 750.00 | F133: 220.00 | G133: 2379.50 | H133: 3349.50 | I133: 772.50 | J133: 226.60 | K133: 2688.84 | N133: 1 | P133: 1 | Q133: 1 | R133: 410 | S133: 450 | T133: 350 | U133: 3850 | V133: 400 | W133: 400 | AA133: 772.50 | AB133: 226.60 | AC133: 2688.84 | AD133: 3687.94 | AE133: -833.00 | AF133: 15678 | AG133: 2599.5
A134: 钢筋混凝土 污水检查井 φ1250（井高1.88m，DN800图集20s515-30) | B134: 9 | C134: 座 | D134: 4972.94 | E134: 750.00 | F134: 220.00 | G134: 2152.00 | H134: 3122.00 | I134: 772.50 | J134: 226.60 | K134: 2431.76 | N134: 1 | P134: 1 | Q134: 1 | R134: 410 | S134: 450 | T134: 350 | U134: 3850 | V134: 400 | W134: 400 | AA134: 772.50 | AB134: 226.60 | AC134: 2431.76 | AD134: 3430.86 | AE134: 2002.62 | AF134: 44756 | AG134: 2372
A135: 钢筋混凝土 污水检查井 φ1500（井高2.9m，DN1000图集20s515-29) | B135: 2 | C135: 座 | D135: 4497.72 | E135: 750.00 | F135: 220.00 | G135: 4492.00 | H135: 5462.00 | I135: 772.50 | J135: 226.60 | K135: 5075.96 | N135: 1 | P135: 1 | Q135: 1 | R135: 410 | S135: 450 | T135: 350 | U135: 3850 | V135: 400 | W135: 400 | AA135: 772.50 | AB135: 226.60 | AC135: 5075.96 | AD135: 6075.06 | AE135: -1160.81 | AF135: 8995 | AG135: 4712
A136: 钢筋混凝土 溢流井 680×380 井高1m | B136: 1 | C136: 座 | D136: 615.63 | E136: 80.00 | F136: 220.00 | G136: 639.71 | H136: 939.71 | I136: 82.40 | J136: 226.60 | K136: 722.87 | N136: 1 | P136: 1 | Q136: 1 | R136: 410 | S136: 450 | T136: 350 | U136: 3850 | V136: 400 | W136: 400 | AA136: 82.40 | AB136: 226.60 | AC136: 722.87 | AD136: 1031.87 | AE136: -359.23 | AF136: 616 | AG136: 859.71
A137: 钢筋混凝土 溢流井（井高1m，详见大样图）700X400 | B137: 7 | C137: 座 | D137: 646.28 | E137: 80.00 | F137: 220.00 | G137: 639.71 | H137: 939.71 | I137: 82.40 | J137: 226.60 | K137: 722.87 | N137: 1 | P137: 1 | Q137: 1 | R137: 410 | S137: 450 | T137: 350 | U137: 3850 | V137: 400 | W137: 400 | AA137: 82.40 | AB137: 226.60 | AC137: 722.87 | AD137: 1031.87 | AE137: -325.74 | AF137: 4524 | AG137: 859.71
A138: 沟槽回填石屑 | B138: 20426.31 | C138: m3 | D138: 227.4 | E138: 27.68 | F138: 6.50 | G138: 177.00 | H138: 211.18 | I138: 28.51 | J138: 6.70 | K138: 200.01 | AA138: 28.51 | AB138: 6.70 | AC138: 200.01 | AD138: 235.22 | AE138: 13.24 | AF138: 4644943
A139: 沟槽回填土方（利用挖方） | B139: 14162.88 | C139: m3 | D139: 6.7 | E139: 1.26 | F139: 5.68 | H139: 6.94 | I139: 1.30 | J139: 5.85 | K139: 0.00 | AA139: 1.30 | AB139: 5.85 | AC139: 0.00 | AD139: 7.15 | AE139: 0.17 | AF139: 94891
A140: 管道封堵 | B140: 296 | C140: 处 | D140: 150 | E140: 35.00 | F140: 0.00 | G140: 15.00 | H140: 50.00 | I140: 36.05 | J140: 0.00 | K140: 16.95 | AA140: 36.05 | AB140: 0.00 | AC140: 16.95 | AD140: 53.00 | AE140: 110.89 | AF140: 44400
A141: 管道封堵 DN300 | B141: 36 | C141: 处 | D141: 150 | E141: 35.00 | F141: 0.00 | G141: 15.00 | H141: 50.00 | I141: 36.05 | J141: 0.00 | K141: 16.95 | AA141: 36.05 | AB141: 0.00 | AC141: 16.95 | AD141: 53.00 | AE141: 110.89 | AF141: 5400
A142: 管道基础模板 | B142: 3468.3 | C142: m2 | D142: 35.05 | E142: 18.00 | F142: 0.50 | G142: 38.00 | H142: 56.50 | I142: 18.54 | J142: 0.52 | K142: 42.94 | AA142: 18.54 | AB142: 0.52 | AC142: 42.94 | AD142: 62.00 | AE142: -23.70 | AF142: 121564
A143: 花岗岩路缘石90×15×30cm | B143: 3691.7 | C143: m | D143: 229.78 | E143: 35.00 | G143: 162.72 | H143: 197.72 | I143: 36.05 | J143: 0.00 | K143: 183.87 | AA143: 36.05 | AB143: 0.00 | AC143: 183.87 | AD143: 219.92 | AE143: 31.14 | AF143: 848279
A144: 换填1:1碎石砂 | B144: 1612.66 | C144: m3 | D144: 271.87 | E144: 15.00 | F144: 22.50 | G144: 140.00 | H144: 177.50 | I144: 15.45 | J144: 23.17 | K144: 158.20 | AA144: 15.45 | AB144: 23.17 | AC144: 158.20 | AD144: 196.82 | AE144: 100.23 | AF144: 438434
A145: 混凝土出水口 D1650 | B145: 1 | C145: 座 | D145: 22000 | E145: 1000.00 | G145: 17000.00 | H145: 18000.00 | I145: 1030.00 | J145: 0.00 | K145: 19210.00 | AA145: 1030.00 | AB145: 0.00 | AC145: 19210.00 | AD145: 20240.00 | AE145: 3797.42 | AF145: 22000
A146: 混凝土出水口 D1800 | B146: 1 | C146: 座 | D146: 25000 | E146: 2000.00 | G146: 18000.00 | H146: 20000.00 | I146: 2060.00 | J146: 0.00 | K146: 20340.00 | AA146: 2060.00 | AB146: 0.00 | AC146: 20340.00 | AD146: 22400.00 | AE146: 4915.25 | AF146: 25000
A147: 混凝土出水口 D3000 | B147: 1 | C147: 座 | D147: 40000 | E147: 2000.00 | G147: 35000.00 | H147: 37000.00 | I147: 2060.00 | J147: 0.00 | K147: 39550.00 | AA147: 2060.00 | AB147: 0.00 | AC147: 39550.00 | AD147: 41610.00 | AE147: 2094.40 | AF147: 40000
A148: 混凝土出水口 D400 | B148: 2 | C148: 座 | D148: 3500 | E148: 800.00 | G148: 2250.00 | H148: 3050.00 | I148: 824.00 | J148: 0.00 | K148: 2542.50 | AA148: 824.00 | AB148: 0.00 | AC148: 2542.50 | AD148: 3366.50 | AE148: 457.64 | AF148: 7000
A149: 混凝土垫层 C20 | B149: 80 | C149: m3 | D149: 468.05 | E149: 65.48 | F149: 27.48 | G149: 398.06 | H149: 491.02 | I149: 67.44 | J149: 28.30 | K149: 449.81 | AA149: 67.44 | AB149: 28.30 | AC149: 449.81 | AD149: 545.55 | AE149: -34.15 | AF149: 37444
A150: 混凝土方沟 300×400 | B150: 5363.68 | C150: m | D150: 445.78 | E150: 25.00 | G150: 402.50 | H150: 427.50 | I150: 25.75 | J150: 0.00 | K150: 454.83 | AA150: 25.75 | AB150: 0.00 | AC150: 454.83 | AD150: 480.58 | AE150: 6.48 | AF150: 2391021
A151: 混凝土基础 C20包管 | B151: 23.27 | C151: m3 | D151: 484.27 | E151: 65.48 | F151: 27.48 | G151: 398.06 | H151: 491.02 | I151: 67.44 | J151: 28.30 | K151: 449.81 | AA151: 67.44 | AB151: 28.30 | AC151: 449.81 | AD151: 545.55 | AE151: -16.43 | AF151: 11269
A152: 检查井周加强 | B152: 631 | C152: 座 | D152: 2000 | E152: 600.00 | G152: =0.8*245*4.15*1.3 -> 1057.42 | H152: 1657.42 | I152: 618.00 | J152: 0.00 | K152: 1194.88 | AA152: 618.00 | AB152: 0.00 | AC152: 1194.88 | AD152: 1812.88 | AE152: 372.34 | AF152: 1262000
A153: 井壁模板 | B153: 12859.82 | C153: m2 | D153: 44.08 | E153: 18.00 | F153: 0.50 | G153: 38.00 | H153: 56.50 | I153: 18.54 | J153: 0.52 | K153: 42.94 | AA153: 18.54 | AB153: 0.52 | AC153: 42.94 | AD153: 62.00 | AE153: -13.84 | AF153: 566861
A154: 井底模板 | B154: 1490.1 | C154: m2 | D154: 37.18 | E154: 18.00 | F154: 0.50 | G154: 38.00 | H154: 56.50 | I154: 18.54 | J154: 0.52 | K154: 42.94 | AA154: 18.54 | AB154: 0.52 | AC154: 42.94 | AD154: 62.00 | AE154: -21.38 | AF154: 55402
A155: 立管断接 | B155: 7 | C155: 处 | D155: 250 | E155: 80.00 | F155: 15.00 | G155: =6*17.5+40 -> 145.00 | H155: 240.00 | I155: 82.40 | J155: 15.45 | K155: 163.85 | AA155: 82.40 | AB155: 15.45 | AC155: 163.85 | AD155: 261.70 | AE155: 11.45 | AF155: 1750
A156: 立管断接 UPVC管 PVC-U排水管 DN200（含弯头、聚乙烯缓冲沉砂井等） | B156: 106 | C156: 处 | D156: 250 | E156: 80.00 | F156: 15.00 | G156: =6*17.5+40 -> 145.00 | H156: 240.00 | I156: 82.40 | J156: 15.45 | K156: 163.85 | AA156: 82.40 | AB156: 15.45 | AC156: 163.85 | AD156: 261.70 | AE156: 11.45 | AF156: 26500
A157: 立管接驳--UPVC管 PVC-U排水管 DN200 | B157: 1296.25 | C157: m | D157: 55.24 | E157: 15.00 | G157: 33.00 | H157: 48.00 | I157: 15.45 | J157: 0.00 | K157: 37.29 | AA157: 15.45 | AB157: 0.00 | AC157: 37.29 | AD157: 52.74 | AE157: 7.62 | AF157: 71605
A158: 立柱式杆件φ89*4*5150mm | B158: 63 | C158: 套 | D158: 1288.48 | E158: 180.00 | G158: 950.00 | H158: 1130.00 | I158: 185.40 | J158: 0.00 | K158: 1073.50 | AA158: 185.40 | AB158: 0.00 | AC158: 1073.50 | AD158: 1258.90 | AE158: 148.91 | AF158: 81174
A159: 破除并修复围墙 | B159: 36 | C159: m | D159: 800 | E159: =248*1.65 -> 409.20 | G159: =(552*0.4+200*0.2)*1.65 -> 430.32 | H159: 839.52 | I159: 421.48 | J159: 0.00 | K159: 486.26 | AA159: 421.48 | AB159: 0.00 | AC159: 486.26 | AD159: 907.74 | AE159: -33.65 | AF159: 28800
A160: 铺种草皮 | B160: 87 | C160: m2 | D160: 45.54 | E160: 15.00 | G160: 20.00 | H160: 35.00 | I160: 15.45 | J160: 0.00 | K160: 22.60 | AA160: 15.45 | AB160: 0.00 | AC160: 22.60 | AD160: 38.05 | AE160: 11.71 | AF160: 3962
A161: 墙面脚手架 | B161: 5713.51 | C161: m2 | D161: 10.23 | E161: 8.40 | F161: 0.12 | G161: 6.48 | H161: 15.00 | I161: 8.65 | J161: 0.12 | K161: 7.32 | AA161: 8.65 | AB161: 0.12 | AC161: 7.32 | AD161: 16.09 | AE161: -4.91 | AF161: 58449
A162: 球墨铸铁防坠网 | B162: 560 | C162: 座 | D162: 100 | E162: 10.00 | G162: 45.00 | H162: 55.00 | I162: 10.30 | J162: 0.00 | K162: 50.85 | AA162: 10.30 | AB162: 0.00 | AC162: 50.85 | AD162: 61.15 | AE162: 48.11 | AF162: 56000
A163: 人行横道标线 | B163: 683.8 | C163: m2 | D163: 39.23 | E163: 3.04 | F163: 6.00 | G163: 27.00 | H163: 36.04 | I163: 3.13 | J163: 6.18 | K163: 30.51 | AA163: 3.13 | AB163: 6.18 | AC163: 30.51 | AD163: 39.82 | AE163: 3.04 | AF163: 26825
A164: 砂垫层 | B164: 7191.08 | C164: m3 | D164: 311.16 | E164: 15.00 | G164: 185.00 | H164: 200.00 | I164: 15.45 | J164: 0.00 | K164: 209.05 | AA164: 15.45 | AB164: 0.00 | AC164: 209.05 | AD164: 224.50 | AE164: 115.48 | AF164: 2237576
A165: 水马1.3X0.65（摊销5次） | B165: 6489 | C165: m | D165: 17.25 | E165: =3.5 -> 3.50 | G165: =65/5 -> 13.00 | H165: 16.50 | I165: 3.61 | J165: 0.00 | K165: 14.69 | AA165: 3.61 | AB165: 0.00 | AC165: 14.69 | AD165: 18.30 | AE165: 0.55 | AF165: 111935
A166: 太阳能导向牌（1.4×0.4m） | B166: 22 | C166: 套 | D166: 1442.72 | E166: 30.00 | G166: 758.00 | H166: 788.00 | I166: 30.90 | J166: 0.00 | K166: 856.54 | AA166: 30.90 | AB166: 0.00 | AC166: 856.54 | AD166: 887.44 | AE166: 688.89 | AF166: 31740
A167: 太阳能施工牌（1.2×0.5m） | B167: 194 | C167: 套 | D167: 1530.72 | E167: 30.00 | G167: 715.00 | H167: 745.00 | I167: 30.90 | J167: 0.00 | K167: 807.95 | AA167: 30.90 | AB167: 0.00 | AC167: 807.95 | AD167: 838.85 | AE167: 833.63 | AF167: 296960
A168: 铁马1.5X1m（摊销5次） | B168: 680 | C168: m | D168: 44.26 | E168: 3.50 | G168: =51/5 -> 10.20 | H168: 13.70 | I168: 3.61 | J168: 0.00 | K168: 11.53 | AA168: 3.61 | AB168: 0.00 | AC168: 11.53 | AD168: 15.14 | AE168: 33.22 | AF168: 30097
A169: 挖沟槽石方（极软岩) | B169: 10496.17 | C169: m3 | D169: 9.34 | E169: 1.35 | F169: 11.00 | H169: 12.35 | I169: 1.39 | J169: 11.33 | K169: 0.00 | AA169: 1.39 | AB169: 11.33 | AC169: 0.00 | AD169: 12.72 | AE169: -2.52 | AF169: 98034
A170: 挖沟槽石方（较软岩） | B170: 5248.1 | C170: m3 | D170: 43.59 | E170: 1.35 | F170: =150/7 -> 21.43 | H170: 22.78 | I170: 1.39 | J170: 22.07 | K170: 0.00 | AA170: 1.39 | AB170: 22.07 | AC170: 0.00 | AD170: 23.46 | AE170: 24.17 | AF170: 228765
A171: 挖沟槽土方 | B171: 42062.23 | C171: m3 | D171: 7.93 | E171: 1.35 | F171: =150/19 -> 7.89 | H171: 9.24 | I171: 1.39 | J171: 8.13 | K171: 0.00 | AA171: 1.39 | AB171: 8.13 | AC171: 0.00 | AD171: 9.52 | AE171: -0.86 | AF171: 333553
A172: 挖淤泥、流砂 | B172: 258.99 | C172: m3 | D172: 11.89 | E172: 1.35 | F172: =150/19 -> 7.89 | H172: 9.24 | I172: 1.39 | J172: 8.13 | K172: 0.00 | AA172: 1.39 | AB172: 8.13 | AC172: 0.00 | AD172: 9.52 | AE172: 3.47 | AF172: 3079
A173: 围挡H=2.5m | B173: 9046.8 | C173: m | D173: 83.35 | G173: 150.00 | H173: 150.00 | I173: 0.00 | J173: 0.00 | K173: 169.50 | AA173: 0.00 | AB173: 0.00 | AC173: 169.50 | AD173: 169.50 | AE173: -78.43 | AF173: 754051
A174: 围堰 | B174: 846 | C174: m3 | D174: 61.24 | E174: 15.00 | G174: 35.00 | H174: 50.00 | I174: 15.45 | J174: 0.00 | K174: 39.55 | AA174: 15.45 | AB174: 0.00 | AC174: 39.55 | AD174: 55.00 | AE174: 11.91 | AF174: 51809
A175: 污水管改道 钢带增强聚乙烯螺旋波纹管 DN400mmSN8.0 | B175: 189 | C175: m | D175: 161.94 | E175: 43.50 | F175: 20.00 | G175: 71.11 | H175: 134.61 | I175: 44.81 | J175: 20.60 | K175: 80.35 | AA175: 44.81 | AB175: 20.60 | AC175: 80.35 | AD175: 145.76 | AE175: 31.18 | AF175: 30607
A176: 污水管检修孔 | B176: 2 | C176: 座 | D176: 2000 | E176: 500.00 | G176: 1500.00 | H176: 2000.00 | I176: 515.00 | J176: 0.00 | K176: 1695.00 | AA176: 515.00 | AB176: 0.00 | AC176: 1695.00 | AD176: 2210.00 | AE176: -24.78 | AF176: 4000
A177: 现浇构件钢筋 螺纹钢HRB400 | B177: 157.39 | C177: t | D177: 3826.48 | E177: 1020.00 | F177: 50.00 | G177: 3763.73 | H177: 4833.73 | I177: 1050.60 | J177: 51.50 | K177: 4253.01 | AA177: 1050.60 | AB177: 51.50 | AC177: 4253.01 | AD177: 5355.11 | AE177: -1174.26 | AF177: 602250
A178: 现浇混凝土池壁（隔墙） | B178: 509.54 | C178: m3 | D178: 516.89 | E178: 80.00 | F178: 30.00 | G178: 418.00 | H178: 528.00 | I178: 82.40 | J178: 30.90 | K178: 472.34 | AA178: 82.40 | AB178: 30.90 | AC178: 472.34 | AD178: 585.64 | AE178: -20.88 | AF178: 263376
A179: 现浇混凝土池底 | B179: 307.34 | C179: m3 | D179: 516.19 | E179: 80.00 | F179: 30.00 | G179: 418.00 | H179: 528.00 | I179: 82.40 | J179: 30.90 | K179: 472.34 | AA179: 82.40 | AB179: 30.90 | AC179: 472.34 | AD179: 585.64 | AE179: -21.65 | AF179: 158646
A180: 现浇混凝土池盖板 | B180: 307.34 | C180: m3 | D180: 520.62 | E180: 80.00 | F180: 30.00 | G180: 418.00 | H180: 528.00 | I180: 82.40 | J180: 30.90 | K180: 472.34 | AA180: 82.40 | AB180: 30.90 | AC180: 472.34 | AD180: 585.64 | AE180: -16.81 | AF180: 160007
A181: 箱涵侧墙模板 | B181: 1374.96 | C181: m2 | D181: 43.25 | E181: 18.00 | F181: 0.50 | G181: 38.00 | H181: 56.50 | I181: 18.54 | J181: 0.52 | K181: 42.94 | AA181: 18.54 | AB181: 0.52 | AC181: 42.94 | AD181: 62.00 | AE181: -14.74 | AF181: 59467
A182: 箱涵垫层模板 | B182: 40.44 | C182: m2 | D182: 30.36 | E182: 18.00 | F182: 0.50 | G182: 38.00 | H182: 56.50 | I182: 18.54 | J182: 0.52 | K182: 42.94 | AA182: 18.54 | AB182: 0.52 | AC182: 42.94 | AD182: 62.00 | AE182: -28.83 | AF182: 1228
A183: 箱涵顶板模板 | B183: 606.6 | C183: m2 | D183: 46.3 | E183: 18.00 | F183: 0.50 | G183: 38.00 | H183: 56.50 | I183: 18.54 | J183: 0.52 | K183: 42.94 | AA183: 18.54 | AB183: 0.52 | AC183: 42.94 | AD183: 62.00 | AE183: -11.41 | AF183: 28086
A184: 箱涵滑（底）板模板 | B184: 161.76 | C184: m2 | D184: 47.21 | E184: 18.00 | F184: 0.50 | G184: 38.00 | H184: 56.50 | I184: 18.54 | J184: 0.52 | K184: 42.94 | AA184: 18.54 | AB184: 0.52 | AC184: 42.94 | AD184: 62.00 | AE184: -10.42 | AF184: 7637
A185: 夜间行驶闪光灯 | B185: 1360 | C185: 个 | D185: 15.86 | G185: 6.98 | H185: 6.98 | I185: 0.00 | J185: 0.00 | K185: 7.89 | AA185: 0.00 | AB185: 0.00 | AC185: 7.89 | AD185: 7.89 | AE185: 9.44 | AF185: 21570
A186: 引孔后注粘土浆 比重1.4 | B186: 4566.58 | C186: m3 | D186: 100 | E186: 10.00 | F186: 50.00 | G186: 10.00 | H186: 70.00 | I186: 10.30 | J186: 51.50 | K186: 11.30 | AA186: 10.30 | AB186: 51.50 | AC186: 11.30 | AD186: 73.10 | AE186: 36.16 | AF186: 456658
A187: 余方弃置(弃石） | B187: 15744.27 | C187: m3 | D187: 14.58 | F187: =220/18.5 -> 11.89 | H187: 11.89 | I187: 0.00 | J187: 12.25 | K187: 0.00 | AA187: 0.00 | AB187: 12.25 | AC187: 0.00 | AD187: 12.25 | AE187: 3.68 | AF187: 229551
A188: 余方弃置(弃土） | B188: 27895.35 | C188: m3 | D188: 12.75 | F188: =220/18.5 -> 11.89 | H188: 11.89 | I188: 0.00 | J188: 12.25 | K188: 0.00 | AA188: 0.00 | AB188: 12.25 | AC188: 0.00 | AD188: 12.25 | AE188: 1.68 | AF188: 355666
A189: 余方弃置(弃淤泥） | B189: 449.96 | C189: m3 | D189: 19.12 | F189: 18.50 | H189: 18.50 | I189: 0.00 | J189: 19.06 | K189: 0.00 | AA189: 0.00 | AB189: 19.06 | AC189: 0.00 | AD189: 19.06 | AE189: 1.83 | AF189: 8603
A190: 余方弃置(弃渣） | B190: 14226.21 | C190: m3 | D190: 14.58 | F190: =220/18.5 -> 11.89 | H190: 11.89 | I190: 0.00 | J190: 12.25 | K190: 0.00 | AA190: 0.00 | AB190: 12.25 | AC190: 0.00 | AD190: 12.25 | AE190: 3.68 | AF190: 207418
A191: 雨水井周加强 | B191: 727 | C191: 座 | D191: 200 | E191: 200.00 | H191: 200.00 | I191: 206.00 | J191: 0.00 | K191: 0.00 | AA191: 206.00 | AB191: 0.00 | AC191: 0.00 | AD191: 206.00 | AE191: 12.52 | AF191: 145400
A192: 雨水口 废除 | B192: 589 | C192: 座 | D192: 200 | F192: 50.00 | H192: 50.00 | I192: 0.00 | J192: 51.50 | K192: 0.00 | AA192: 0.00 | AB192: 51.50 | AC192: 0.00 | AD192: 51.50 | AE192: 167.02 | AF192: 117800
A193: 雨水口 封盖 450X750X60混凝土盖板 | B193: 282 | C193: 座 | D193: 83.62 | E193: 15.00 | G193: 45.00 | H193: 60.00 | I193: 15.45 | J193: 0.00 | K193: 50.85 | AA193: 15.45 | AB193: 0.00 | AC193: 50.85 | AD193: 66.30 | AE193: 25.06 | AF193: 23581
A194: 植草沟 | B194: 25 | C194: m | D194: 68.74 | E194: 15.00 | G194: 50.00 | H194: =SUM(E194:G194) -> 65.00 | I194: =ROUND(E194*1.03,2) -> 15.45 | J194: =ROUND(F194*1.03,2) -> 0.00 | K194: =ROUND(G194*1.13,2) -> 56.50 | AA194: =I194 -> 15.45 | AB194: =J194 -> 0.00 | AC194: =K194 -> 56.50 | AD194: =AA194+AB194+AC194 -> 71.95 | AE194: =D194*1.09261-AD194 -> 3.16 | AF194: =D194*B194 -> 1719
A195: 植草沟 B=500 | B195: 58 | C195: m | D195: 45.05 | E195: 15.00 | G195: 50.00 | H195: =SUM(E195:G195) -> 65.00 | I195: =ROUND(E195*1.03,2) -> 15.45 | J195: =ROUND(F195*1.03,2) -> 0.00 | K195: =ROUND(G195*1.13,2) -> 56.50 | AA195: =I195 -> 15.45 | AB195: =J195 -> 0.00 | AC195: =K195 -> 56.50 | AD195: =AA195+AB195+AC195 -> 71.95 | AE195: =D195*1.09261-AD195 -> -22.73 | AF195: =D195*B195 -> 2613
A196: 锥形交通标 | B196: 643 | C196: 个 | D196: 30 | G196: 15.00 | H196: =SUM(E196:G196) -> 15.00 | I196: =ROUND(E196*1.03,2) -> 0.00 | J196: =ROUND(F196*1.03,2) -> 0.00 | K196: =ROUND(G196*1.13,2) -> 16.95 | AA196: =I196 -> 0.00 | AB196: =J196 -> 0.00 | AC196: =K196 -> 16.95 | AD196: =AA196+AB196+AC196 -> 16.95 | AE196: =D196*1.09261-AD196 -> 15.83 | AF196: =D196*B196 -> 19290
J206: =308/0.03 -> 10266.66667

Sheet Sheet1 (hidden)
A1: 1 分部分项及单价措施项目 | B1: 900565.1 | C1: 920768.62 | D1: 97127.77 | E1: 135542.34 | F1: 18885.7 | G1: 120008.71 | H1: 86520.28 | I1: 414085.79 | J1: 23307.99 | K1: 86129.15 | L1: 24846.63 | M1: 10202.36 | N1: 47316.15 | O1: 60186.46 | P1: 412962.06 | Q1: 128957.4 | R1: 39997.18 | S1: 247568.3 | T1: 43540.17 | U1: 494563.99 | V1: 300000 | W1: 184086.15 | X1: 133927.43 | Y1: =SUM(B1:X1) -> 4931095.73
A2: 2 总价措施项目 | B2: 38157.64 | C2: 35784.42 | D2: 2113.15 | E2: 2307.02 | F2: 1549.07 | G2: 7959.56 | H2: 7725.14 | I2: 9748.03 | J2: 1357.01 | K2: 3975.24 | L2: 1394.21 | M2: 555.61 | N2: 3184.64 | O2: 2900.09 | P2: 16481.62 | Q2: 6315.95 | R2: 2178.76 | S2: 14351.97 | T2: 2014.04 | U2: 12298.81 | W2: 644.86 | X2: 1299.47 | Y2: =SUM(B2:X2) -> 174296.31
A3: 2.1 其中：安全文明施工费 | B3: 36025.52 | C3: 33784.9 | D3: 1995.08 | E3: 2178.11 | F3: 1462.51 | G3: 7514.8 | H3: 7293.48 | I3: 9203.34 | J3: 1281.19 | K3: 3753.13 | L3: 1316.3 | M3: 524.56 | N3: 3006.69 | O3: 2738.05 | P3: 15560.68 | Q3: 5963.04 | R3: 2057.01 | S3: 13550.02 | T3: 1901.5 | U3: 11611.59 | W3: 608.83 | X3: 1226.86 | Y3: 164557.19
A4: 4 规费 | B4: 17095.66 | C4: 13660.34 | D4: 804.64 | E4: 983.25 | F4: 677.26 | G4: 3382.16 | H4: 3306.15 | I4: 3079.63 | J4: 569.9 | K4: 1671.65 | L4: 611.48 | M4: 231.32 | N4: 1350.34 | O4: 1261.9 | P4: 7015.59 | Q4: 2674.56 | R4: 929.06 | S4: 6309.27 | T4: 854.19 | U4: 5308.21 | W4: 283.85 | X4: 571.14 | Y4: 72631.55
A5: 6 税前不含税工程造价 | B5: 955818.4 | C5: 970213.38 | D5: 100045.56 | E5: 138832.61 | F5: 21112.03 | G5: 131350.43 | H5: 97551.57 | I5: 426913.45 | J5: 25234.9 | K5: 91776.04 | L5: 26852.32 | M5: 10989.29 | N5: 51851.13 | O5: 64348.45 | P5: 436459.27 | Q5: 137947.91 | R5: 43105 | S5: 268229.54 | T5: 46408.4 | U5: 512171.01 | V5: 300000 | W5: 185014.86 | X5: 135798.04 | Y5: 5178023.59
A6: 7 销项增值税额 | B6: 86023.66 | C6: 87319.2 | D6: 9004.1 | E6: 12494.93 | F6: 1900.08 | G6: 11821.54 | H6: 8779.64 | I6: 38422.21 | J6: 2271.14 | K6: 8259.84 | L6: 2416.71 | M6: 989.04 | N6: 4666.6 | O6: 5791.36 | P6: 39281.33 | Q6: 12415.31 | R6: 3879.45 | S6: 24140.66 | T6: 4176.76 | U6: 46095.39 | V6: 27000 | W6: 16651.34 | X6: 12221.82 | Y6: 466022.11
A7: 8 附加税 | B7: 2991.71 | C7: 3036.77 | D7: 313.14 | E7: 434.55 | F7: 66.08 | G7: 411.13 | H7: 305.34 | I7: 1336.24 | J7: 78.99 | K7: 287.26 | L7: 84.05 | M7: 34.4 | N7: 162.29 | O7: 201.41 | P7: 1366.12 | Q7: 431.78 | R7: 134.92 | S7: 839.56 | T7: 145.26 | U7: 1603.1 | V7: 939 | W7: 579.1 | X7: 425.05 | Y7: 16207.25
A8: 招标控制价/投标报价总价合计=税前不含税工程造价+销项增值税额+附加税 | B8: 1044833.77 | C8: 1060569.35 | D8: 109362.8 | E8: 151762.09 | F8: 23078.19 | G8: 143583.1 | H8: 106636.55 | I8: 466671.9 | J8: 27585.03 | K8: 100323.14 | L8: 29353.08 | M8: 12012.73 | N8: 56680.02 | O8: 70341.22 | P8: 477106.72 | Q8: 150795 | R8: 47119.37 | S8: 293209.76 | T8: 50730.42 | U8: 559869.5 | V8: 327939 | W8: 202245.3 | X8: 148444.91 | Y8: 5660252.95
